Workbook

Sheet Data (2) (hidden)
H1: 2023 | M1: 2024 | R1: 2025 | W1: =H1 -> 2023 | AB1: =M1 -> 2024 | AG1: =R1 -> 2025
A2: PPC Generation - Romania (in GWh) | C2: =#REF! ->  | D2: 2023 | E2: 2024 | F2: 2025 | H2: Q1 | I2: Q2 | J2: Q3 | K2: Q4 | M2: Q1 | N2: Q2 | O2: Q3 | P2: Q4 | R2: Q1 | S2: Q2 | T2: Q3 | U2: Q4 | W2: Q1 | X2: H1 | Y2: 9M | Z2: FY | AB2: Q1 | AC2: H1 | AD2: 9M | AE2: FY | AG2: Q1 | AH2: H1 | AI2: 9M | AJ2: FY
A3: PPC Romania | C3: =IF(SUM(C4:C6)>0,SUM(C4:C6),"") -> 1236.530055 | D3: =IF(SUM(D4:D6)>0,SUM(D4:D6),"") -> 1334.62 | E3: =IF(SUM(E4:E6)>0,SUM(E4:E6),"") -> 1384.558834 | F3: 2175.056306 | H3: =IF(SUM(H4:H6)>0,SUM(H4:H6),"") -> 396.48 | I3: =IF(SUM(I4:I6)>0,SUM(I4:I6),"") -> 277.72 | J3: 317.72 | K3: 342.7 | M3: =IF(SUM(M4:M6)>0,SUM(M4:M6),"") -> 370.598819 | N3: =IF(SUM(N4:N6)>0,SUM(N4:N6),"") -> 295.430004 | O3: 222.5870254 | P3: 495.942986 | R3: =IF(SUM(R4:R6)>0,SUM(R4:R6),"") -> 570.643978 | S3: =IF(SUM(S4:S6)>0,SUM(S4:S6),"") -> 491.294723 | T3: 444.4404503 | U3: 668.6771547 | W3: =SUM(W4:W6) -> 396.48 | X3: =SUM(X4:X6) -> 674.2 | Y3: 991.92 | Z3: 1334.62 | AB3: =IF(SUM(AB4:AB6)>0,SUM(AB4:AB6),"") -> 370.598819 | AC3: =IF(SUM(AC4:AC6)>0,SUM(AC4:AC6),"") -> 666.028823 | AD3: 888.6158484 | AE3: 1384.558834 | AG3: =IF(R3="","",SUM($R3:R3)) -> 570.643978 | AH3: =IF(S3="","",SUM($R3:S3)) -> 1061.938701 | AI3: =IF(T3="","",SUM($R3:T3)) -> 1506.379151 | AJ3: =IF(U3="","",SUM($R3:U3)) -> 2175.056306
A4: Wind | C4: 1193.988084 | D4: =SUM(H4:K4) -> 1244.59 | E4: =IF(P4<>"",SUM(M4:P4),"") -> 1261.822866 | F4: =IF(U4<>"",SUM(R4:U4),"") -> 2023.522108 | H4: 389.14 | I4: 265.25 | J4: 267.27 | K4: 322.93 | M4: 348.755585 | N4: 252.203977 | O4: 184.2469434 | P4: 476.616361 | R4: 540.722377 | S4: 431.518359 | T4: 399.7104553 | U4: 651.5709167 | W4: =IF(H4>0,SUM($H4:H4),"") -> 389.14 | X4: =IF(I4>0,SUM($H4:I4),"") -> 654.39 | Y4: =IF(J4>0,SUM($H4:J4),"") -> 921.66 | Z4: =IF(K4>0,SUM($H4:K4),"") -> 1244.59 | AB4: =IF(M4="","",SUM($M4:M4)) -> 348.755585 | AC4: =IF(N4="","",SUM($M4:N4)) -> 600.959562 | AD4: =IF(O4="","",SUM($M4:O4)) -> 785.2065054 | AE4: =IF(P4="","",SUM($M4:P4)) -> 1261.822866 | AG4: =IF(R4="","",SUM($R4:R4)) -> 540.722377 | AH4: =IF(S4="","",SUM($R4:S4)) -> 972.240736 | AI4: =IF(T4="","",SUM($R4:T4)) -> 1371.951191 | AJ4: =IF(U4="","",SUM($R4:U4)) -> 2023.522108
A5: Solar | C5: 42.541971 | D5: 90.03 | E5: 119.035968 | F5: =IF(U5<>"",SUM(R5:U5),"") -> 124.634083 | H5: 7.34 | I5: 12.47 | J5: 50.45 | K5: 19.77 | M5: 21.843234 | N5: 43.226027 | O5: 38.340082 | P5: 15.626625 | R5: 24.233268 | S5: 48.351974 | T5: 39.148053 | U5: 12.900788 | W5: =IF(H5>0,SUM($H5:H5),"") -> 7.34 | X5: =IF(I5>0,SUM($H5:I5),"") -> 19.81 | Y5: =IF(J5>0,SUM($H5:J5),"") -> 70.26 | Z5: =IF(K5>0,SUM($H5:K5),"") -> 90.03 | AB5: =IF(M5="","",SUM($M5:M5)) -> 21.843234 | AC5: =IF(N5="","",SUM($M5:N5)) -> 65.069261 | AD5: =IF(O5="","",SUM($M5:O5)) -> 103.409343 | AE5: =IF(P5="","",SUM($M5:P5)) -> 119.035968 | AG5: =IF(R5="","",SUM($R5:R5)) -> 24.233268 | AH5: =IF(S5="","",SUM($R5:S5)) -> 72.585242 | AI5: =IF(T5="","",SUM($R5:T5)) -> 111.733295 | AJ5: =IF(U5="","",SUM($R5:U5)) -> 124.634083
A6: Other | D6: 0 | E6: 3.7 | F6: =IF(U6<>"",SUM(R6:U6),"") -> 26.900115 | M6: 0 | N6: 0 | O6: 0 | P6: 3.7 | R6: 5.688333 | S6: 11.42439 | T6: 5.581942 | U6: 4.20545 | W6: =IF(H6>0,SUM($H6:H6),"") ->  | X6: =IF(I6>0,SUM($H6:I6),"") ->  | Y6: =IF(J6>0,SUM($H6:J6),"") ->  | Z6: =IF(K6>0,SUM($H6:K6),"") ->  | AB6: =IF(M6="","",SUM($M6:M6)) -> 0 | AC6: =IF(N6="","",SUM($M6:N6)) -> 0 | AD6: =IF(O6="","",SUM($M6:O6)) -> 0 | AE6: =IF(P6="","",SUM($M6:P6)) -> 3.7 | AG6: =IF(R6="","",SUM($R6:R6)) -> 5.688333 | AH6: =IF(S6="","",SUM($R6:S6)) -> 17.112723 | AI6: =IF(T6="","",SUM($R6:T6)) -> 22.694665 | AJ6: =IF(U6="","",SUM($R6:U6)) -> 26.900115
A8: RES Third Party (excl. Hydro) | C8: 7934.469945 | D8: =SUM(H8:K8) -> 8128.56 | E8: =IF(P8<>"",SUM(M8:P8),"") -> 7499.489166 | F8: =IF(U8<>"",SUM(R8:U8),"") -> 6995.538694 | H8: 2354.79 | I8: 1850.57 | J8: 1873.91 | K8: 2049.29 | M8: 2213.997181 | N8: 1799.293996 | O8: 1851.300975 | P8: 1634.897014 | R8: 1591.954022 | S8: 1911.964277 | T8: 1798.47055 | U8: 1693.149845 | W8: 2354.785195 | X8: 4205.351853 | Y8: 6079.263389 | Z8: 8128.55224 | AB8: =IF(M8="","",SUM($M8:M8)) -> 2213.997181 | AC8: =IF(N8="","",SUM($M8:N8)) -> 4013.291177 | AD8: =IF(O8="","",SUM($M8:O8)) -> 5864.592152 | AE8: =IF(P8="","",SUM($M8:P8)) -> 7499.489166 | AG8: =IF(R8="","",SUM($R8:R8)) -> 1591.954022 | AH8: =IF(S8="","",SUM($R8:S8)) -> 3503.918299 | AI8: =IF(T8="","",SUM($R8:T8)) -> 5302.388849 | AJ8: =IF(U8="","",SUM($R8:U8)) -> 6995.538694
D9: =D3/(D3+D8) -> 0.1410329297 | E9: 0.1558477436 | F9: 0.2371772285 | H9: 0.1441079938 | I9: 0.1304897359 | J9: 0.1449697257 | K9: 0.1432698297 | M9: 0.1433875232 | N9: 0.1410352887 | O9: 0.1073283733 | P9: 0.2327452958 | R9: 0.2638696503 | S9: 0.2044285377 | T9: =T3/(T3+T8) -> 0.1981534044 | U9: =U3/(U3+U8) -> 0.2831186004 | AB9: =AB3/(AB3+AB8) -> 0.1433875232 | AC9: 0.1423345322 | AD9: 0.1315842557 | AE9: 0.1558477436 | AG9: 0.2638696503 | AH9: 0.2325825581 | AI9: 0.2212410749 | AJ9: 0.2371772285
H11: =H1 -> 2023 | M11: =M1 -> 2024 | R11: =R1 -> 2025 | W11: =#REF! ->  | AB11: =AB1 -> 2024 | AG11: =AG1 -> 2025
A12: PPC Generation - Bulgaria (in GWh) | C12: =#REF! ->  | D12: =D2 -> 2023 | E12: =E2 -> 2024 | F12: =F2 -> 2025 | H12: Q1 | I12: Q2 | J12: Q3 | K12: Q4 | M12: Q1 | N12: Q2 | O12: Q3 | P12: Q4 | R12: Q1 | S12: Q2 | T12: Q3 | U12: Q4 | W12: Q1 | X12: H1 | Y12: 9M | Z12: FY | AB12: Q1 | AC12: H1 | AD12: 9M | AE12: FY | AG12: Q1 | AH12: H1 | AI12: 9M | AJ12: FY
A13: PPC - Bulgaria | D13: =IF(D15="","",D15) ->  | E13: =IF(E15="","",E15) -> 10 | F13: =IF(F15="","",F15) -> 36.908742 | H13: =IF(H15="","",H15) ->  | M13: =IF(M15="","",M15) ->  | P13: 10 | R13: =IF(R15="","",R15) -> 12.236029 | S13: 7.201288 | T13: 7.057739 | U13: 10.413686 | W13: =IF(W15="","",W15) ->  | AB13: =IF(AB15="","",AB15) ->  | AE13: 10 | AG13: =IF(AG15="","",AG15) -> 12.236029 | AH13: 19.437317 | AI13: 26.495056 | AJ13: 36.908742
A14: Solar | F14: =SUM(R14:U14) -> 0.43407848 | R14: 0 | S14: 0 | T14: 0 | U14: 0.43407848
A15: Wind | E15: =SUM(M15:P15) -> 10 | F15: =SUM(R15:U15) -> 36.908742 | P15: 10 | R15: 12.236029 | S15: 7.201288 | T15: 7.057739 | U15: 10.413686 | W15: =IF(H15>0,SUM($H15:H15),"") ->  | X15: =IF(I15>0,SUM($H15:I15),"") ->  | Y15: =IF(J15>0,SUM($H15:J15),"") ->  | Z15: =IF(K15>0,SUM($H15:K15),"") ->  | AB15: =IF(M15="","",SUM($M15:M15)) ->  | AC15: =IF(N15="","",SUM($M15:N15)) ->  | AD15: =IF(O15="","",SUM($M15:O15)) ->  | AE15: =IF(P15="","",SUM($M15:P15)) -> 10 | AG15: =IF(R15="","",SUM($R15:R15)) -> 12.236029 | AH15: =IF(S15="","",SUM($R15:S15)) -> 19.437317 | AI15: =IF(T15="","",SUM($R15:T15)) -> 26.495056 | AJ15: =IF(U15="","",SUM($R15:U15)) -> 36.908742
H17: =H1 -> 2023 | M17: =M1 -> 2024 | R17: =R1 -> 2025 | W17: =#REF! ->  | AB17: =AB1 -> 2024 | AG17: =AG1 -> 2025
A18: PPC Generation - Italia (in GWh) | C18: =#REF! ->  | D18: =D2 -> 2023 | E18: =E2 -> 2024 | F18: =F2 -> 2025 | H18: Q1 | I18: Q2 | J18: Q3 | K18: Q4 | M18: Q1 | N18: Q2 | O18: Q3 | P18: Q4 | R18: Q1 | S18: Q2 | T18: Q3 | U18: Q4 | W18: Q1 | X18: H1 | Y18: 9M | Z18: FY | AB18: Q1 | AC18: H1 | AD18: 9M | AE18: FY | AG18: Q1 | AH18: H1 | AI18: 9M | AJ18: FY
A19: PPC - Italia | D19: =IF(D20="","",D20) ->  | E19: =IF(E20="","",E20) ->  | F19: =IF(F20="","",F20) -> 27.819269 | H19: =IF(H20="","",H20) ->  | M19: =IF(M20="","",M20) ->  | R19: =IF(R20="","",R20) -> 0 | S19: 1.84355 | T19: 18.061309 | U19: 7.91441 | W19: =IF(W20="","",W20) ->  | AB19: =IF(AB20="","",AB20) ->  | AG19: =IF(AG20="","",AG20) -> 0 | AH19: 1.84355 | AI19: 19.904859 | AJ19: 27.819269
A20: Solar | F20: =SUM(R20:U20) -> 27.819269 | R20: 0 | S20: 1.84355 | T20: 18.061309 | U20: 7.91441 | W20: =IF(H20>0,SUM($H20:H20),"") ->  | X20: =IF(I20>0,SUM($H20:I20),"") ->  | Y20: =IF(J20>0,SUM($H20:J20),"") ->  | Z20: =IF(K20>0,SUM($H20:K20),"") ->  | AB20: =IF(M20="","",SUM($M20:M20)) ->  | AC20: =IF(N20="","",SUM($M20:N20)) ->  | AD20: =IF(O20="","",SUM($M20:O20)) ->  | AE20: =IF(P20="","",SUM($M20:P20)) ->  | AG20: =IF(R20="","",SUM($R20:R20)) -> 0 | AH20: =IF(S20="","",SUM($R20:S20)) -> 1.84355 | AI20: =IF(T20="","",SUM($R20:T20)) -> 19.904859 | AJ20: =IF(U20="","",SUM($R20:U20)) -> 27.819269

Sheet Data (hidden)
A1: =IF(B1=1,TRUE,FALSE) -> TRUE | B1: 1 | H1: 2023 | M1: 2024 | R1: 2025 | W1: =H1 -> 2023 | AB1: =M1 -> 2024 | AG1: =R1 -> 2025
A2: Greece (in GWh) | C2: 2022 | D2: 2023 | E2: 2024 | F2: 2025 | H2: Q1 | I2: Q2 | J2: Q3 | K2: Q4 | M2: Q1 | N2: Q2 | O2: Q3 | P2: Q4 | R2: Q1 | S2: Q2 | T2: Q3 | U2: Q4 | W2: Q1 | X2: H1 | Y2: 9M | Z2: FY | AB2: Q1 | AC2: H1 | AD2: 9M | AE2: FY | AG2: Q1 | AH2: H1 | AI2: 9M | AJ2: FY
A4: PPC sales | C4: 29882 | D4: =SUM(H4:K4) -> 26044.66 | E4: =IF(P4<>"",SUM(M4:P4),"") -> 24792.4 | F4: =IF(U4<>"",SUM(R4:U4),"") -> 24421.73755 | H4: 6865.45 | I4: 5688.86 | J4: 7480.54 | K4: 6009.81 | M4: 5768.37 | N4: 5786.96 | O4: 7169.98 | P4: 6067.09 | R4: 5886.741111 | S4: 5724.875419 | T4: 7312.925855 | U4: 5497.195169 | W4: =IF(H4>0,SUM($H4:H4),"") -> 6865.45 | X4: =IF(I4>0,SUM($H4:I4),"") -> 12554.31 | Y4: =IF(J4>0,SUM($H4:J4),"") -> 20034.85 | Z4: =IF(K4>0,SUM($H4:K4),"") -> 26044.66 | AB4: =IF(M4="","",SUM($M4:M4)) -> 5768.37 | AC4: =IF(N4="","",SUM($M4:N4)) -> 11555.33 | AD4: =IF(O4="","",SUM($M4:O4)) -> 18725.31 | AE4: =IF(P4="","",SUM($M4:P4)) -> 24792.4 | AG4: =IF(R4="","",SUM($R4:R4)) -> 5886.741111 | AH4: =IF(S4="","",SUM($R4:S4)) -> 11611.61653 | AI4: =IF(T4="","",SUM($R4:T4)) -> 18924.54238 | AJ4: =IF(U4="","",SUM($R4:U4)) -> 24421.73755
A5: Third Party Sales (estimation) | C5: 18011 | D5: =SUM(H5:K5) -> 20043.73 | E5: 24148.73 | F5: =IF(U5<>"",SUM(R5:U5),"") -> 24001.53763 | H5: 4426.44 | I5: 4598 | J5: 5882.03 | K5: 5137.26 | M5: 5627.4 | N5: 5808.94 | O5: 6921.88 | P5: 5790.51 | R5: 5851.146234 | S5: 5670.939754 | T5: 6724.80546 | U5: 5754.64618 | W5: =IF(H5>0,SUM($H5:H5),"") -> 4426.44 | X5: =IF(I5>0,SUM($H5:I5),"") -> 9024.44 | Y5: =IF(J5>0,SUM($H5:J5),"") -> 14906.47 | Z5: =IF(K5>0,SUM($H5:K5),"") -> 20043.73 | AB5: =IF(M5="","",SUM($M5:M5)) -> 5627.4 | AC5: =IF(N5="","",SUM($M5:N5)) -> 11436.34 | AD5: =IF(O5="","",SUM($M5:O5)) -> 18358.22 | AE5: =IF(P5="","",SUM($M5:P5)) -> 24148.73 | AG5: =IF(R5="","",SUM($R5:R5)) -> 5851.146234 | AH5: =IF(S5="","",SUM($R5:S5)) -> 11522.08599 | AI5: =IF(T5="","",SUM($R5:T5)) -> 18246.89145 | AJ5: =IF(U5="","",SUM($R5:U5)) -> 24001.53763
A7: Domestic Demand1 | C7: 55576 | D7: =SUM(H7:K7) -> 54066.73 | E7: =IF(P7<>"",SUM(M7:P7),"") -> 57146.48918 | F7: =IF(U7<>"",SUM(R7:U7),"") -> 56429.49863 | H7: 13232.42 | I7: 12291.9 | J7: 15968.66 | K7: 12573.75 | M7: 13500.99455 | N7: 13469.41212 | O7: 16891.5929 | P7: 13284.48961 | R7: 13761.14192 | S7: 13252.1224 | T7: 16475.19001 | U7: 12941.0443 | W7: =IF(H7>0,SUM($H7:H7),"") -> 13232.42 | X7: =IF(I7>0,SUM($H7:I7),"") -> 25524.32 | Y7: =IF(J7>0,SUM($H7:J7),"") -> 41492.98 | Z7: =IF(K7>0,SUM($H7:K7),"") -> 54066.73 | AB7: =IF(M7="","",SUM($M7:M7)) -> 13500.99455 | AC7: =IF(N7="","",SUM($M7:N7)) -> 26970.40667 | AD7: =IF(O7="","",SUM($M7:O7)) -> 43861.99957 | AE7: =IF(P7="","",SUM($M7:P7)) -> 57146.48918 | AG7: =IF(R7="","",SUM($R7:R7)) -> 13761.14192 | AH7: =IF(S7="","",SUM($R7:S7)) -> 27013.26433 | AI7: =IF(T7="","",SUM($R7:T7)) -> 43488.45433 | AJ7: =IF(U7="","",SUM($R7:U7)) -> 56429.49863
A8: Domestic Demand (Mainland) | C8: 50688 | D8: =SUM('Demand (IPTO)'!B2:M2) -> 49490 | E8: =SUM('Demand (IPTO)'!B3:M3) -> 51812.5 | F8: =SUM('Demand (IPTO)'!B4:M4) -> 51370.73 | H8: ='Demand (IPTO)'!O2 -> 12350 | I8: ='Demand (IPTO)'!P2 -> 11169 | J8: ='Demand (IPTO)'!Q2 -> 14328 | K8: ='Demand (IPTO)'!R2 -> 11643 | M8: =IF('Demand (IPTO)'!O3>0,'Demand (IPTO)'!O3,"") -> 12458 | N8: =IF('Demand (IPTO)'!P3>0,'Demand (IPTO)'!P3,"") -> 12115.5 | O8: =IF('Demand (IPTO)'!Q3>0,'Demand (IPTO)'!Q3,"") -> 15062 | P8: =IF('Demand (IPTO)'!R3>0,'Demand (IPTO)'!R3,"") -> 12177 | R8: ='Demand (IPTO)'!B4+'Demand (IPTO)'!C4+'Demand (IPTO)'!D4 -> 12752.38 | S8: ='Demand (IPTO)'!E4+'Demand (IPTO)'!F4+'Demand (IPTO)'!G4 -> 11975.03 | T8: ='Demand (IPTO)'!H4+'Demand (IPTO)'!I4+'Demand (IPTO)'!J4 -> 14678.62 | U8: ='Demand (IPTO)'!K4+'Demand (IPTO)'!L4+'Demand (IPTO)'!M4 -> 11964.7 | W8: =IF(H8>0,SUM($H8:H8),"") -> 12350 | X8: =IF(I8>0,SUM($H8:I8),"") -> 23519 | Y8: =IF(J8>0,SUM($H8:J8),"") -> 37847 | Z8: =IF(K8>0,SUM($H8:K8),"") -> 49490 | AB8: =IF(M8="","",SUM($M8:M8)) -> 12458 | AC8: =IF(N8="","",SUM($M8:N8)) -> 24573.5 | AD8: =IF(O8="","",SUM($M8:O8)) -> 39635.5 | AE8: =IF(P8="","",SUM($M8:P8)) -> 51812.5 | AG8: =IF(R8="","",SUM($R8:R8)) -> 12752.38 | AH8: =IF(S8="","",SUM($R8:S8)) -> 24727.41 | AI8: =IF(T8="","",SUM($R8:T8)) -> 39406.03 | AJ8: =IF(U8="","",SUM($R8:U8)) -> 51370.73
A10: 1. Domestic Demand is Total Demand minus exports.
H13: =$H$1 -> 2023 | M13: =$M$1 -> 2024 | R13: =$R$1 -> 2025 | W13: =$W$1 -> 2023 | AB13: =AB1 -> 2024 | AG13: =AG1 -> 2025
A14: Romania (in GWh) | C14: =C2 -> 2022 | D14: =D2 -> 2023 | E14: =E2 -> 2024 | F14: 2025 | H14: Q1 | I14: Q2 | J14: Q3 | K14: Q4 | M14: Q1 | N14: Q2 | O14: Q3 | P14: Q4 | R14: Q1 | S14: Q2 | T14: Q3 | U14: Q4 | W14: Q1 | X14: H1 | Y14: 9M | Z14: FY | AB14: Q1 | AC14: H1 | AD14: 9M | AE14: FY | AG14: Q1 | AH14: H1 | AI14: 9M | AJ14: FY
A16: PPC Romania sales | C16: 9852 | D16: =SUM(H16:K16) -> 8237.9 | E16: =IF(P16<>"",SUM(M16:P16),"") -> 7696.869755 | F16: =IF(U16<>"",SUM(R16:U16),"") -> 7445.014976 | G16: ΟΚ | H16: 2338.52 | I16: 1946.58 | J16: 2032.6 | K16: 1920.2 | M16: 1892.581807 | N16: 1747.50593 | O16: 2035.307969 | P16: 2021.47405 | R16: 1992.901213 | S16: 1761.902371 | T16: 1863.594417 | U16: 1826.616975 | W16: =IF(H16>0,SUM($H16:H16),"") -> 2338.52 | X16: =IF(I16>0,SUM($H16:I16),"") -> 4285.1 | Y16: =IF(J16>0,SUM($H16:J16),"") -> 6317.7 | Z16: =IF(K16>0,SUM($H16:K16),"") -> 8237.9 | AB16: =IF(M16="","",SUM($M16:M16)) -> 1892.581807 | AC16: =IF(N16="","",SUM($M16:N16)) -> 3640.087737 | AD16: =IF(O16="","",SUM($M16:O16)) -> 5675.395706 | AE16: =IF(P16="","",SUM($M16:P16)) -> 7696.869755 | AG16: =IF(R16="","",SUM($R16:R16)) -> 1992.901213 | AH16: =IF(S16="","",SUM($R16:S16)) -> 3754.803584 | AI16: =IF(T16="","",SUM($R16:T16)) -> 5618.398001 | AJ16: =IF(U16="","",SUM($R16:U16)) -> 7445.014976
A17: Third Party Sales (estimation) | C17: 37338 | D17: 37857 | E17: 40410.72024 | F17: =IF(U17<>"",SUM(R17:U17),"") -> 40800.13502 | H17: 8998 | I17: 9098 | J17: 9841 | K17: 9920 | M17: 10132.54819 | N17: 9720.97407 | O17: 10228.33203 | P17: 10328.86595 | R17: 10166.35879 | S17: 9817.497629 | T17: 10412.76558 | U17: 10403.51303 | W17: =IF(H17>0,SUM($H17:H17),"") -> 8998 | X17: =IF(I17>0,SUM($H17:I17),"") -> 18096 | Y17: =IF(J17>0,SUM($H17:J17),"") -> 27937 | Z17: =IF(K17>0,SUM($H17:K17),"") -> 37857 | AB17: =IF(M17="","",SUM($M17:M17)) -> 10132.54819 | AC17: =IF(N17="","",SUM($M17:N17)) -> 19853.52226 | AD17: =IF(O17="","",SUM($M17:O17)) -> 30081.85429 | AE17: =IF(P17="","",SUM($M17:P17)) -> 40410.72024 | AG17: =IF(R17="","",SUM($R17:R17)) -> 10166.35879 | AH17: =IF(S17="","",SUM($R17:S17)) -> 19983.85642 | AI17: =IF(T17="","",SUM($R17:T17)) -> 30396.622 | AJ17: =IF(U17="","",SUM($R17:U17)) -> 40800.13502
A19: Demand | C19: 53726.82888 | D19: =SUM(H19:K19) -> 51052.46 | E19: =IF(P19<>"",SUM(M19:P19),"") -> 53329.52075 | F19: =IF(U19<>"",SUM(R19:U19),"") -> 53027.70316 | G19: OK ME ROXANA | H19: 13327.63 | I19: 11989.05 | J19: 12524.88 | K19: 13210.9 | M19: 13740.45573 | N19: 12409.27662 | O19: 13184.59673 | P19: 13995.19167 | R19: 13919.38504 | S19: 12465.21756 | T19: 12935.79995 | U19: 13707.30061 | W19: =IF(H19>0,SUM($H19:H19),"") -> 13327.63 | X19: =IF(I19>0,SUM($H19:I19),"") -> 25316.68 | Y19: =IF(J19>0,SUM($H19:J19),"") -> 37841.56 | Z19: =IF(K19>0,SUM($H19:K19),"") -> 51052.46 | AB19: =IF(M19="","",SUM($M19:M19)) -> 13740.45573 | AC19: =IF(N19="","",SUM($M19:N19)) -> 26149.73235 | AD19: =IF(O19="","",SUM($M19:O19)) -> 39334.32908 | AE19: =IF(P19="","",SUM($M19:P19)) -> 53329.52075 | AG19: =IF(R19="","",SUM($R19:R19)) -> 13919.38504 | AH19: =IF(S19="","",SUM($R19:S19)) -> 26384.6026 | AI19: =IF(T19="","",SUM($R19:T19)) -> 39320.40255 | AJ19: =IF(U19="","",SUM($R19:U19)) -> 53027.70316
H23: =$H$1 -> 2023 | M23: =$M$1 -> 2024 | R23: =$R$1 -> 2025 | W23: =$W$1 -> 2023 | AB23: =AB1 -> 2024 | AG23: =AG1 -> 2025
A24: PPC Generation - Greece (in GWh) | C24: =C2 -> 2022 | D24: =D2 -> 2023 | E24: =E2 -> 2024 | F24: 2025 | H24: Q1 | I24: Q2 | J24: Q3 | K24: Q4 | M24: Q1 | N24: Q2 | O24: Q3 | P24: Q4 | R24: Q1 | S24: Q2 | T24: Q3 | U24: Q4 | W24: Q1 | X24: H1 | Y24: 9M | Z24: FY | AB24: Q1 | AC24: H1 | AD24: 9M | AE24: FY | AG24: Q1 | AH24: H1 | AI24: 9M | AJ24: FY
A26: PPC Generation | C26: =SUM(C27:C30) -> 22602 | D26: =SUM(D27:D30) -> 19279.73 | E26: =SUM(E27:E30) -> 19614.5438 | F26: =SUM(F27:F30) -> 18664.51147 | G26: OK | H26: =IF(SUM(H27:H30)=0,"",SUM(H27:H30)) -> 4286.24 | I26: =IF(SUM(I27:I30)=0,"",SUM(I27:I30)) -> 3861.87 | J26: 6069.17 | K26: 5062.45 | M26: 4244.215856 | N26: 4446.646505 | O26: 6059.701515 | P26: 4863.97992 | R26: 4991.680273 | S26: 3741.933687 | T26: 5012.069121 | U26: 4918.828387 | W26: =IF(H26>0,SUM($H26:H26),"") -> 4286.24 | X26: =IF(I26>0,SUM($H26:I26),"") -> 8148.11 | Y26: =IF(J26>0,SUM($H26:J26),"") -> 14217.28 | Z26: =IF(K26>0,SUM($H26:K26),"") -> 19279.73 | AB26: =IF(M26="","",SUM($M26:M26)) -> 4244.215856 | AC26: =IF(N26="","",SUM($M26:N26)) -> 8690.862361 | AD26: =IF(O26="","",SUM($M26:O26)) -> 14750.56388 | AE26: =IF(P26="","",SUM($M26:P26)) -> 19614.5438 | AG26: =IF(R26="","",SUM($R26:R26)) -> 4991.680273 | AH26: =IF(S26="","",SUM($R26:S26)) -> 8733.61396 | AI26: =IF(T26="","",SUM($R26:T26)) -> 13745.68308 | AJ26: =IF(U26="","",SUM($R26:U26)) -> 18664.51147
A27: Lignite | C27: 5460 | D27: =SUM(H27:K27) -> 4513.21 | E27: =IF(P27<>"",SUM(M27:P27),"") -> 3236.310282 | F27: =IF(U27<>"",SUM(R27:U27),"") -> 2722.916589 | H27: 1445.47 | I27: 693.39 | J27: 1149.96 | K27: 1224.39 | M27: 1050.233862 | N27: 448.140922 | O27: 826.165174 | P27: 911.770324 | R27: 1127.214346 | S27: 285.345368 | T27: 503.901819 | U27: 806.455056 | W27: =IF(H27>0,SUM($H27:H27),"") -> 1445.47 | X27: =IF(I27>0,SUM($H27:I27),"") -> 2138.86 | Y27: =IF(J27>0,SUM($H27:J27),"") -> 3288.82 | Z27: =IF(K27>0,SUM($H27:K27),"") -> 4513.21 | AB27: =IF(M27="","",SUM($M27:M27)) -> 1050.233862 | AC27: =IF(N27="","",SUM($M27:N27)) -> 1498.374784 | AD27: =IF(O27="","",SUM($M27:O27)) -> 2324.539958 | AE27: =IF(P27="","",SUM($M27:P27)) -> 3236.310282 | AG27: =IF(R27="","",SUM($R27:R27)) -> 1127.214346 | AH27: =IF(S27="","",SUM($R27:S27)) -> 1412.559714 | AI27: =IF(T27="","",SUM($R27:T27)) -> 1916.461533 | AJ27: =IF(U27="","",SUM($R27:U27)) -> 2722.916589
A28: Natural Gas | C28: 8678 | D28: 6284.39 | E28: =IF(P28<>"",SUM(M28:P28),"") -> 7711.397673 | F28: =IF(U28<>"",SUM(R28:U28),"") -> 7650.411149 | H28: 1179.57 | I28: 1417.35 | J28: 2048.47 | K28: 1639 | M28: 1330.389647 | N28: 1774.720771 | O28: 2297.512184 | P28: 2308.775071 | R28: 2253.067081 | S28: 1426.019487 | T28: 1685.043704 | U28: 2286.280877 | W28: =IF(H28>0,SUM($H28:H28),"") -> 1179.57 | X28: =IF(I28>0,SUM($H28:I28),"") -> 2596.92 | Y28: =IF(J28>0,SUM($H28:J28),"") -> 4645.39 | Z28: =IF(K28>0,SUM($H28:K28),"") -> 6284.39 | AB28: =IF(M28="","",SUM($M28:M28)) -> 1330.389647 | AC28: =IF(N28="","",SUM($M28:N28)) -> 3105.110418 | AD28: =IF(O28="","",SUM($M28:O28)) -> 5402.622602 | AE28: =IF(P28="","",SUM($M28:P28)) -> 7711.397673 | AG28: =IF(R28="","",SUM($R28:R28)) -> 2253.067081 | AH28: =IF(S28="","",SUM($R28:S28)) -> 3679.086568 | AI28: =IF(T28="","",SUM($R28:T28)) -> 5364.130272 | AJ28: =IF(U28="","",SUM($R28:U28)) -> 7650.411149
A29: Oil | C29: 3973 | D29: 3685.01 | E29: 3870.421698 | F29: =IF(U29<>"",SUM(R29:U29),"") -> 3613.239576 | H29: 680.37 | I29: 849.33 | J29: 1395.4 | K29: 759.91 | M29: 678.8471535 | N29: 979.7633051 | O29: 1434.005172 | P29: 777.806067 | R29: 681.0664701 | S29: 892.754709 | T29: 1369.756195 | U29: 669.6622018 | W29: =IF(H29>0,SUM($H29:H29),"") -> 680.37 | X29: =IF(I29>0,SUM($H29:I29),"") -> 1529.7 | Y29: =IF(J29>0,SUM($H29:J29),"") -> 2925.1 | Z29: =IF(K29>0,SUM($H29:K29),"") -> 3685.01 | AB29: =IF(M29="","",SUM($M29:M29)) -> 678.8471535 | AC29: =IF(N29="","",SUM($M29:N29)) -> 1658.610459 | AD29: =IF(O29="","",SUM($M29:O29)) -> 3092.615631 | AE29: =IF(P29="","",SUM($M29:P29)) -> 3870.421698 | AG29: =IF(R29="","",SUM($R29:R29)) -> 681.0664701 | AH29: =IF(S29="","",SUM($R29:S29)) -> 1573.821179 | AI29: =IF(T29="","",SUM($R29:T29)) -> 2943.577374 | AJ29: =IF(U29="","",SUM($R29:U29)) -> 3613.239576
A30: RES | C30: 4491 | D30: =SUM(H30:K30) -> 4797.12 | E30: =IF(P30<>"",SUM(M30:P30),"") -> 4796.414144 | F30: =IF(U30<>"",SUM(R30:U30),"") -> 4677.944154 | H30: 980.83 | I30: 901.8 | J30: 1475.34 | K30: 1439.15 | M30: 1184.745194 | N30: 1244.021507 | O30: 1502.018985 | P30: 865.6284582 | R30: 930.3323763 | S30: 1137.814123 | T30: 1453.367404 | U30: 1156.430252 | W30: =IF(H30>0,SUM($H30:H30),"") -> 980.83 | X30: =IF(I30>0,SUM($H30:I30),"") -> 1882.63 | Y30: =IF(J30>0,SUM($H30:J30),"") -> 3357.97 | Z30: =IF(K30>0,SUM($H30:K30),"") -> 4797.12 | AB30: =IF(M30="","",SUM($M30:M30)) -> 1184.745194 | AC30: =IF(N30="","",SUM($M30:N30)) -> 2428.766701 | AD30: =IF(O30="","",SUM($M30:O30)) -> 3930.785686 | AE30: =IF(P30="","",SUM($M30:P30)) -> 4796.414144 | AG30: =IF(R30="","",SUM($R30:R30)) -> 930.3323763 | AH30: =IF(S30="","",SUM($R30:S30)) -> 2068.146499 | AI30: =IF(T30="","",SUM($R30:T30)) -> 3521.513902 | AJ30: =IF(U30="","",SUM($R30:U30)) -> 4677.944154
A32: Third Party Generation | C32: 29422 | D32: =SUM(H32:K32) -> 29494.76 | E32: =IF(P32<>"",SUM(M32:P32),"") -> 37554.65038 | F32: =IF(U32<>"",SUM(R32:U32),"") -> 40373.93716 | H32: 6677.29 | I32: 7009.98 | J32: 8947.07 | K32: 6860.42 | M32: 8532.498689 | N32: 9235.555616 | O32: 10307.67839 | P32: 9478.917691 | R32: 9535.69565 | S32: 9314.989717 | T32: 12280.79888 | U32: 9242.452912 | W32: =IF(H32>0,SUM($H32:H32),"") -> 6677.29 | X32: =IF(I32>0,SUM($H32:I32),"") -> 13687.27 | Y32: =IF(J32>0,SUM($H32:J32),"") -> 22634.34 | Z32: =IF(K32>0,SUM($H32:K32),"") -> 29494.76 | AB32: =IF(M32="","",SUM($M32:M32)) -> 8532.498689 | AC32: =IF(N32="","",SUM($M32:N32)) -> 17768.0543 | AD32: =IF(O32="","",SUM($M32:O32)) -> 28075.73269 | AE32: =IF(P32="","",SUM($M32:P32)) -> 37554.65038 | AG32: =IF(R32="","",SUM($R32:R32)) -> 9535.69565 | AH32: =IF(S32="","",SUM($R32:S32)) -> 18850.68537 | AI32: =IF(T32="","",SUM($R32:T32)) -> 31131.48425 | AJ32: =IF(U32="","",SUM($R32:U32)) -> 40373.93716
H35: =H$1 -> 2023 | M35: =M$1 -> 2024 | R35: =R$1 -> 2025 | W35: =W$1 -> 2023 | AB35: =AB$1 -> 2024 | AG35: =AG$1 -> 2025
A36: PPC Generation - International (in GWh) | C36: =C2 -> 2022 | D36: =D2 -> 2023 | E36: =E2 -> 2024 | F36: 2025 | H36: Q1 | I36: Q2 | J36: Q3 | K36: Q4 | M36: Q1 | N36: Q2 | O36: Q3 | P36: Q4 | R36: Q1 | S36: Q2 | T36: Q3 | U36: Q4 | W36: Q1 | X36: H1 | Y36: 9M | Z36: FY | AB36: Q1 | AC36: H1 | AD36: 9M | AE36: FY | AG36: Q1 | AH36: H1 | AI36: 9M | AJ36: FY
A37: PPC - International | D37: =IF(SUM(D38:D40)="","",SUM(D38:D40)) -> 1334.62 | E37: =IF(SUM(E38:E40)="","",SUM(E38:E40)) -> 1394.558834 | F37: =IF(SUM(F38:F40)="","",SUM(F38:F40)) -> 2239.784317 | G37: OK | H37: =IF(SUM(H38:H40)="","",SUM(H38:H40)) -> 396.48 | I37: 277.72 | J37: 317.72 | K37: 342.7 | M37: =IF(SUM(M38:M40)="","",SUM(M38:M40)) -> 370.598819 | N37: 295.430004 | O37: 222.5870254 | P37: 505.942986 | R37: =IF(SUM(R38:R40)="","",SUM(R38:R40)) -> 582.880007 | S37: 500.339561 | T37: 469.5594983 | U37: =IF(SUM(U38:U40)="","",SUM(U38:U40)) -> 687.0052507 | W37: =IF(W38="","",W38) -> 389.14 | X37: 654.39 | Y37: 921.66 | Z37: 1244.59 | AB37: =IF(SUM(AB38:AB40)="","",SUM(AB38:AB40)) -> 370.598819 | AC37: 666.028823 | AD37: 888.6158484 | AE37: 1394.558834 | AG37: =IF(SUM(AG38:AG40)="","",SUM(AG38:AG40)) -> 582.880007 | AH37: 1083.219568 | AI37: 1552.779066 | AJ37: =IF(AJ38="","",AJ38) -> 2060.43085
A38: Wind | D38: =SUM(H38:K38) -> 1244.59 | E38: =SUM(M38:P38) -> 1271.822866 | F38: =SUM(R38:U38) -> 2060.43085 | H38: ='Data (2)'!H15+'Data (2)'!H4 -> 389.14 | I38: ='Data (2)'!I15+'Data (2)'!I4 -> 265.25 | J38: ='Data (2)'!J15+'Data (2)'!J4 -> 267.27 | K38: ='Data (2)'!K15+'Data (2)'!K4 -> 322.93 | M38: ='Data (2)'!M15+'Data (2)'!M4 -> 348.755585 | N38: ='Data (2)'!N15+'Data (2)'!N4 -> 252.203977 | O38: ='Data (2)'!O15+'Data (2)'!O4 -> 184.2469434 | P38: ='Data (2)'!P15+'Data (2)'!P4 -> 486.616361 | R38: ='Data (2)'!R15+'Data (2)'!R4 -> 552.958406 | S38: ='Data (2)'!S15+'Data (2)'!S4 -> 438.719647 | T38: ='Data (2)'!T15+'Data (2)'!T4 -> 406.7681943 | U38: ='Data (2)'!U15+'Data (2)'!U4 -> 661.9846027 | W38: =IF(H38>0,SUM($H38:H38),"") -> 389.14 | X38: =IF(I38>0,SUM($H38:I38),"") -> 654.39 | Y38: =IF(J38>0,SUM($H38:J38),"") -> 921.66 | Z38: =IF(K38>0,SUM($H38:K38),"") -> 1244.59 | AB38: =IF(M38="","",SUM($M38:M38)) -> 348.755585 | AC38: =IF(N38="","",SUM($M38:N38)) -> 600.959562 | AD38: =IF(O38="","",SUM($M38:O38)) -> 785.2065054 | AE38: =IF(P38="","",SUM($M38:P38)) -> 1271.822866 | AG38: =IF(R38="","",SUM($R38:R38)) -> 552.958406 | AH38: =IF(S38="","",SUM($R38:S38)) -> 991.678053 | AI38: =IF(T38="","",SUM($R38:T38)) -> 1398.446247 | AJ38: =IF(U38="","",SUM($R38:U38)) -> 2060.43085
A39: Solar | D39: =SUM(H39:K39) -> 90.03 | E39: =SUM(M39:P39) -> 119.035968 | F39: =SUM(R39:U39) -> 152.453352 | H39: ='Data (2)'!H20+'Data (2)'!H5 -> 7.34 | I39: ='Data (2)'!I20+'Data (2)'!I5 -> 12.47 | J39: ='Data (2)'!J20+'Data (2)'!J5 -> 50.45 | K39: ='Data (2)'!K20+'Data (2)'!K5 -> 19.77 | M39: ='Data (2)'!M20+'Data (2)'!M5 -> 21.843234 | N39: ='Data (2)'!N20+'Data (2)'!N5 -> 43.226027 | O39: ='Data (2)'!O20+'Data (2)'!O5 -> 38.340082 | P39: ='Data (2)'!P20+'Data (2)'!P5 -> 15.626625 | R39: ='Data (2)'!R20+'Data (2)'!R5 -> 24.233268 | S39: ='Data (2)'!S20+'Data (2)'!S5 -> 50.195524 | T39: ='Data (2)'!T20+'Data (2)'!T5 -> 57.209362 | U39: ='Data (2)'!U20+'Data (2)'!U5 -> 20.815198 | W39: =IF(H39>0,SUM($H39:H39),"") -> 7.34 | X39: =IF(I39>0,SUM($H39:I39),"") -> 19.81 | Y39: =IF(J39>0,SUM($H39:J39),"") -> 70.26 | Z39: =IF(K39>0,SUM($H39:K39),"") -> 90.03 | AB39: =IF(M39="","",SUM($M39:M39)) -> 21.843234 | AC39: =IF(N39="","",SUM($M39:N39)) -> 65.069261 | AD39: =IF(O39="","",SUM($M39:O39)) -> 103.409343 | AE39: =IF(P39="","",SUM($M39:P39)) -> 119.035968 | AG39: =IF(R39="","",SUM($R39:R39)) -> 24.233268 | AH39: =IF(S39="","",SUM($R39:S39)) -> 74.428792 | AI39: =IF(T39="","",SUM($R39:T39)) -> 131.638154 | AJ39: =IF(U39="","",SUM($R39:U39)) -> 152.453352
A40: Other | D40: 0 | E40: =SUM(M40:P40) -> 3.7 | F40: =SUM(R40:U40) -> 26.900115 | H40: ='Data (2)'!H6 -> 0 | I40: ='Data (2)'!I6 -> 0 | J40: ='Data (2)'!J6 -> 0 | K40: ='Data (2)'!K6 -> 0 | M40: ='Data (2)'!M6 -> 0 | N40: ='Data (2)'!N6 -> 0 | O40: ='Data (2)'!O6 -> 0 | P40: ='Data (2)'!P6 -> 3.7 | R40: ='Data (2)'!R6 -> 5.688333 | S40: ='Data (2)'!S6 -> 11.42439 | T40: ='Data (2)'!T6 -> 5.581942 | U40: ='Data (2)'!U6 -> 4.20545 | W40: =IF(H40>0,SUM($H40:H40),"") ->  | X40: =IF(I40>0,SUM($H40:I40),"") ->  | Y40: =IF(J40>0,SUM($H40:J40),"") ->  | Z40: =IF(K40>0,SUM($H40:K40),"") ->  | AB40: =IF(M40="","",SUM($M40:M40)) -> 0 | AC40: =IF(N40="","",SUM($M40:N40)) -> 0 | AD40: =IF(O40="","",SUM($M40:O40)) -> 0 | AE40: =IF(P40="","",SUM($M40:P40)) -> 3.7 | AG40: =IF(R40="","",SUM($R40:R40)) -> 5.688333 | AH40: =IF(S40="","",SUM($R40:S40)) -> 17.112723 | AI40: =IF(T40="","",SUM($R40:T40)) -> 22.694665 | AJ40: =IF(U40="","",SUM($R40:U40)) -> 26.900115
H42: =H$1 -> 2023 | M42: =M$1 -> 2024 | R42: =R$1 -> 2025 | W42: =W$1 -> 2023 | AB42: =AB$1 -> 2024 | AG42: =AG$1 -> 2025
A43: PPC Market Shares - Greece | C43: =C2 -> 2022 | D43: =D2 -> 2023 | E43: =E2 -> 2024 | F43: 2025 | H43: Q1 | I43: Q2 | J43: Q3 | K43: Q4 | M43: Q1 | N43: Q2 | O43: Q3 | P43: Q4 | R43: Q1 | S43: Q2 | T43: Q3 | U43: Q4 | W43: Q1 | X43: H1 | Y43: 9M | Z43: FY | AB43: Q1 | AC43: H1 | AD43: 9M | AE43: FY | AG43: Q1 | AH43: H1 | AI43: 9M | AJ43: FY
E44: OK | F44: OK
A45: Generation Market Share (average) | C45: 0.4344533292 | D45: =(D26/(D26+D32)) -> 0.395283067 | E45: =(E26/(E26+E32)) -> 0.343096384 | F45: =(F26/(F26+F32)) -> 0.3161416314 | H45: =(H26/(H26+H32)) -> 0.3909543733 | I45: =(I26/(I26+I32)) -> 0.3552173733 | J45: =(J26/(J26+J32)) -> 0.4041737479 | K45: =(K26/(K26+K32)) -> 0.4245999495 | M45: =IF(ISERROR((M26/(M26+M32))),"",(M26/(M26+M32))) -> 0.3321836644 | N45: =IF(ISERROR((N26/(N26+N32))),"",(N26/(N26+N32))) -> 0.3249949435 | O45: =IF(ISERROR((O26/(O26+O32))),"",(O26/(O26+O32))) -> 0.3702303944 | P45: =IF(ISERROR((P26/(P26+P32))),"",(P26/(P26+P32))) -> 0.3391211492 | R45: =IF(ISERROR((R26/(R26+R32))),"",(R26/(R26+R32))) -> 0.3436050874 | S45: =IF(ISERROR((S26/(S26+S32))),"",(S26/(S26+S32))) -> 0.2865861713 | T45: =IF(ISERROR((T26/(T26+T32))),"",(T26/(T26+T32))) -> 0.2898344635 | U45: =IF(ISERROR((U26/(U26+U32))),"",(U26/(U26+U32))) -> 0.3473434559 | W45: =(W26/(W26+W32)) -> 0.3909543733 | X45: =(X26/(X26+X32)) -> 0.3731608976 | Y45: =(Y26/(Y26+Y32)) -> 0.3857979649 | Z45: =(Z26/(Z26+Z32)) -> 0.395283067 | AB45: =IF(ISERROR(AB26/(AB26+AB32)),"",(AB26/(AB26+AB32))) -> 0.3321836644 | AC45: =IF(ISERROR(AC26/(AC26+AC32)),"",(AC26/(AC26+AC32))) -> 0.3284662963 | AD45: =IF(ISERROR(AD26/(AD26+AD32)),"",(AD26/(AD26+AD32))) -> 0.3444277245 | AE45: =IF(ISERROR(AE26/(AE26+AE32)),"",(AE26/(AE26+AE32))) -> 0.343096384 | AG45: =IF(ISERROR(AG26/(AG26+AG32)),"",(AG26/(AG26+AG32))) -> 0.3436050874 | AH45: =IF(ISERROR(AH26/(AH26+AH32)),"",(AH26/(AH26+AH32))) -> 0.3166153998 | AI45: =IF(ISERROR(AI26/(AI26+AI32)),"",(AI26/(AI26+AI32))) -> 0.3062956933 | AJ45: =IF(ISERROR(AJ26/(AJ26+AJ32)),"",(AJ26/(AJ26+AJ32))) -> 0.3161416314
E46: OK | F46: OK
A47: Retail Market Share (average) | C47: 0.6239325162 | D47: =D4/(D4+D5) -> 0.5651024043 | E47: =E4/(E4+E5) -> 0.5065759618 | F47: =F4/(F4+F5) -> 0.5043388218 | H47: =H4/(H4+H5) -> 0.6079983067 | I47: =I4/(I4+I5) -> 0.5530220106 | J47: =J4/(J4+J5) -> 0.5598129701 | K47: =K4/(K4+K5) -> 0.5391380874 | M47: =IF(ISERROR(M4/(M4+M5)),"",M4/(M4+M5)) -> 0.5061851898 | N47: =IF(ISERROR(N4/(N4+N5)),"",N4/(N4+N5)) -> 0.4990522512 | O47: =IF(ISERROR(O4/(O4+O5)),"",O4/(O4+O5)) -> 0.5088029543 | P47: =IF(ISERROR(P4/(P4+P5)),"",P4/(P4+P5)) -> 0.5116625624 | R47: =IF(ISERROR(R4/(R4+R5)),"",R4/(R4+R5)) -> 0.5015162387 | S47: =IF(ISERROR(S4/(S4+S5)),"",S4/(S4+S5)) -> 0.502366468 | T47: =IF(ISERROR(T4/(T4+T5)),"",T4/(T4+T5)) -> 0.5209478434 | U47: =IF(ISERROR(U4/(U4+U5)),"",U4/(U4+U5)) -> 0.4885596054 | W47: =W4/(W4+W5) -> 0.6079983067 | X47: =X4/(X4+X5) -> 0.5817904188 | Y47: =Y4/(Y4+Y5) -> 0.5733856076 | Z47: =Z4/(Z4+Z5) -> 0.5651024043 | AB47: =IF(ISERROR(AB4/(AB4+AB5)),"",AB4/(AB4+AB5)) -> 0.5061851898 | AC47: =IF(ISERROR(AC4/(AC4+AC5)),"",AC4/(AC4+AC5)) -> 0.5025876763 | AD47: =IF(ISERROR(AD4/(AD4+AD5)),"",AD4/(AD4+AD5)) -> 0.5049495018 | AE47: =IF(ISERROR(AE4/(AE4+AE5)),"",AE4/(AE4+AE5)) -> 0.5065759618 | AG47: =IF(ISERROR(AG4/(AG4+AG5)),"",AG4/(AG4+AG5)) -> 0.5015162387 | AH47: =IF(ISERROR(AH4/(AH4+AH5)),"",AH4/(AH4+AH5)) -> 0.5019350673 | AI47: =IF(ISERROR(AI4/(AI4+AI5)),"",AI4/(AI4+AI5)) -> 0.5091152112 | AJ47: =IF(ISERROR(AJ4/(AJ4+AJ5)),"",AJ4/(AJ4+AJ5)) -> 0.5043388218
A48: Retail Market Share (IS end of period)1 | C48: 0.6329 | D48: =K48 -> 0.5611 | E48: =P48 -> 0.5192 | F48: =AJ48 -> 0.4983 | G48: KSANA | H48: 0.6153 | I48: 0.5499 | J48: 0.541 | K48: 0.5611 | M48: 0.5085 | N48: 0.5253 | O48: 0.506 | P48: 0.5192 | R48: 0.4987 | S48: 0.4959 | T48: 0.4921 | U48: 0.4983 | W48: =IF(H48>0,H48,"") -> 0.6153 | X48: =IF(I48>0,I48,"") -> 0.5499 | Y48: =IF(J48>0,J48,"") -> 0.541 | Z48: =IF(K48>0,K48,"") -> 0.5611 | AB48: =IF(M48>0,M48,"") -> 0.5085 | AC48: =IF(N48>0,N48,"") -> 0.5253 | AD48: =IF(O48>0,O48,"") -> 0.506 | AE48: =IF(P48>0,P48,"") -> 0.5192 | AG48: =IF(R48>0,R48,"") -> 0.4987 | AH48: =IF(S48>0,S48,"") -> 0.4959 | AI48: =IF(T48>0,T48,"") -> 0.4921 | AJ48: =IF(U48>0,U48,"") -> 0.4983
A50: 1 ΕnEx monthly report (https://www.enexgroup.gr/el/markets-reports).
A52: PPC Market Shares - Romania | E52: OK | F52: OK
A53: Generation Market Share on RES (average) | C53: 0.1348304498 | D53: =IF(ISERROR('Data (2)'!D3/('Data (2)'!D3+'Data (2)'!D8)),"",'Data (2)'!D3/('Data (2)'!D3+'Data (2)'!D8)) -> 0.1410329297 | E53: =IF(ISERROR('Data (2)'!E3/('Data (2)'!E3+'Data (2)'!E8)),"",'Data (2)'!E3/('Data (2)'!E3+'Data (2)'!E8)) -> 0.1558477436 | F53: =IF(ISERROR('Data (2)'!F3/('Data (2)'!F3+'Data (2)'!F8)),"",'Data (2)'!F3/('Data (2)'!F3+'Data (2)'!F8)) -> 0.2371772285 | H53: =IF(ISERROR('Data (2)'!H3/('Data (2)'!H3+'Data (2)'!H8)),"",'Data (2)'!H3/('Data (2)'!H3+'Data (2)'!H8)) -> 0.1441079938 | I53: =IF(ISERROR('Data (2)'!I3/('Data (2)'!I3+'Data (2)'!I8)),"",'Data (2)'!I3/('Data (2)'!I3+'Data (2)'!I8)) -> 0.1304897359 | J53: =IF(ISERROR('Data (2)'!J3/('Data (2)'!J3+'Data (2)'!J8)),"",'Data (2)'!J3/('Data (2)'!J3+'Data (2)'!J8)) -> 0.1449697257 | K53: =IF(ISERROR('Data (2)'!K3/('Data (2)'!K3+'Data (2)'!K8)),"",'Data (2)'!K3/('Data (2)'!K3+'Data (2)'!K8)) -> 0.1432698297 | M53: =IF(ISERROR('Data (2)'!M3/('Data (2)'!M3+'Data (2)'!M8)),"",'Data (2)'!M3/('Data (2)'!M3+'Data (2)'!M8)) -> 0.1433875232 | N53: =IF(ISERROR('Data (2)'!N3/('Data (2)'!N3+'Data (2)'!N8)),"",'Data (2)'!N3/('Data (2)'!N3+'Data (2)'!N8)) -> 0.1410352887 | O53: =IF(ISERROR('Data (2)'!O3/('Data (2)'!O3+'Data (2)'!O8)),"",'Data (2)'!O3/('Data (2)'!O3+'Data (2)'!O8)) -> 0.1073283733 | P53: =IF(ISERROR('Data (2)'!P3/('Data (2)'!P3+'Data (2)'!P8)),"",'Data (2)'!P3/('Data (2)'!P3+'Data (2)'!P8)) -> 0.2327452958 | R53: =IF(ISERROR('Data (2)'!R3/('Data (2)'!R3+'Data (2)'!R8)),"",'Data (2)'!R3/('Data (2)'!R3+'Data (2)'!R8)) -> 0.2638696503 | S53: =IF(ISERROR('Data (2)'!S3/('Data (2)'!S3+'Data (2)'!S8)),"",'Data (2)'!S3/('Data (2)'!S3+'Data (2)'!S8)) -> 0.2044285377 | T53: =IF(ISERROR('Data (2)'!T3/('Data (2)'!T3+'Data (2)'!T8)),"",'Data (2)'!T3/('Data (2)'!T3+'Data (2)'!T8)) -> 0.1981534044 | U53: =IF(ISERROR('Data (2)'!U3/('Data (2)'!U3+'Data (2)'!U8)),"",'Data (2)'!U3/('Data (2)'!U3+'Data (2)'!U8)) -> 0.2831186004 | W53: =#REF!/(#REF!+#REF!) ->  | X53: =#REF!/(#REF!+#REF!) ->  | Y53: =#REF!/(#REF!+#REF!) ->  | Z53: =#REF!/(#REF!+#REF!) ->  | AB53: =IF(ISERROR('Data (2)'!AB3/('Data (2)'!AB3+'Data (2)'!AB8)),"",'Data (2)'!AB3/('Data (2)'!AB3+'Data (2)'!AB8)) -> 0.1433875232 | AC53: =IF(ISERROR('Data (2)'!AC3/('Data (2)'!AC3+'Data (2)'!AC8)),"",'Data (2)'!AC3/('Data (2)'!AC3+'Data (2)'!AC8)) -> 0.1423345322 | AD53: =IF(ISERROR('Data (2)'!AD3/('Data (2)'!AD3+'Data (2)'!AD8)),"",'Data (2)'!AD3/('Data (2)'!AD3+'Data (2)'!AD8)) -> 0.1315842557 | AE53: =IF(ISERROR('Data (2)'!AE3/('Data (2)'!AE3+'Data (2)'!AE8)),"",'Data (2)'!AE3/('Data (2)'!AE3+'Data (2)'!AE8)) -> 0.1558477436 | AG53: =IF(ISERROR('Data (2)'!AG3/('Data (2)'!AG3+'Data (2)'!AG8)),"",'Data (2)'!AG3/('Data (2)'!AG3+'Data (2)'!AG8)) -> 0.2638696503 | AH53: =IF(ISERROR('Data (2)'!AH3/('Data (2)'!AH3+'Data (2)'!AH8)),"",'Data (2)'!AH3/('Data (2)'!AH3+'Data (2)'!AH8)) -> 0.2325825581 | AI53: =IF(ISERROR('Data (2)'!AI3/('Data (2)'!AI3+'Data (2)'!AI8)),"",'Data (2)'!AI3/('Data (2)'!AI3+'Data (2)'!AI8)) -> 0.2212410749 | AJ53: =IF(ISERROR('Data (2)'!AJ3/('Data (2)'!AJ3+'Data (2)'!AJ8)),"",'Data (2)'!AJ3/('Data (2)'!AJ3+'Data (2)'!AJ8)) -> 0.2371772285
A54: Retail Market Share (average) | C54: 0.2087730451 | D54: =D16/(D16+D17) -> 0.1787160836 | E54: =E16/(E16+E17) -> 0.159992836 | F54: =F16/(F16+F17) -> 0.1543163401 | H54: =H16/(H16+H17) -> 0.2062819984 | I54: =I16/(I16+I17) -> 0.176247535 | J54: =J16/(J16+J17) -> 0.1711864978 | K54: =K16/(K16+K17) -> 0.1621763146 | M54: =IF(ISERROR(M16/(M16+M17)),"",M16/(M16+M17)) -> 0.157385559 | N54: =IF(ISERROR(N16/(N16+N17)),"",N16/(N16+N17)) -> 0.1523746765 | O54: =IF(ISERROR(O16/(O16+O17)),"",O16/(O16+O17)) -> 0.1659627948 | P54: =IF(ISERROR(P16/(P16+P17)),"",P16/(P16+P17)) -> 0.1636776032 | R54: =IF(ISERROR(R16/(R16+R17)),"",R16/(R16+R17)) -> 0.1638998766 | S54: =IF(ISERROR(S16/(S16+S17)),"",S16/(S16+S17)) -> 0.1521583477 | T54: =IF(ISERROR(T16/(T16+T17)),"",T16/(T16+T17)) -> 0.1518035001 | U54: =IF(ISERROR(U16/(U16+U17)),"",U16/(U16+U17)) -> 0.1493538478 | W54: =W16/(W16+W17) -> 0.2062819984 | X54: =X16/(X16+X17) -> 0.1914606521 | Y54: =Y16/(Y16+Y17) -> 0.1844330851 | Z54: =Z16/(Z16+Z17) -> 0.1787160836 | AB54: =IF(ISERROR(AB16/(AB16+AB17)),"",AB16/(AB16+AB17)) -> 0.157385559 | AC54: =IF(ISERROR(AC16/(AC16+AC17)),"",AC16/(AC16+AC17)) -> 0.1549394809 | AD54: =IF(ISERROR(AD16/(AD16+AD17)),"",AD16/(AD16+AD17)) -> 0.1587201394 | AE54: =IF(ISERROR(AE16/(AE16+AE17)),"",AE16/(AE16+AE17)) -> 0.159992836 | AG54: =IF(ISERROR(AG16/(AG16+AG17)),"",AG16/(AG16+AG17)) -> 0.1638998766 | AH54: =IF(ISERROR(AH16/(AH16+AH17)),"",AH16/(AH16+AH17)) -> 0.1581725162 | AI54: =IF(ISERROR(AI16/(AI16+AI17)),"",AI16/(AI16+AI17)) -> 0.1560015238 | AJ54: =IF(ISERROR(AJ16/(AJ16+AJ17)),"",AJ16/(AJ16+AJ17)) -> 0.1543163401
E55: OK | F55: OK
H58: =Data!$H$1 -> 2023 | M58: =Data!$M$1 -> 2024 | R58: =Data!$R$1 -> 2025 | W58: =Data!$H$1 -> 2023 | AB58: =Data!$M$1 -> 2024 | AG58: =Data!$R$1 -> 2025
A59: Other Operational KPIs | C59: 2022 | D59: 2023 | E59: 2024 | F59: 2025 | H59: Q1 | I59: Q2 | J59: Q3 | K59: Q4 | M59: Q1 | N59: Q2 | O59: Q3 | P59: Q4 | R59: Q1 | S59: Q2 | T59: Q3 | U59: Q4 | W59: Q1 | X59: H1 | Y59: 9M | Z59: FY | AB59: Q1 | AC59: H1 | AD59: 9M | AE59: FY | AG59: Q1 | AH59: H1 | AI59: 9M | AJ59: FY
A61: RES capacity | C61: 3.48 GW | D61: 4.6 GW | E61: 5.5 GW | I61: 3.5 GW | J61: 3.8 GW | K61: 4.6 GW | M61: 4.7 GW | N61: 4.7 GW | O61: 4.9 GW | P61: 5.5 GW | R61: 6.2 GW | Y61: 3.8 GW | Z61: 4.6 GW | AB61: 4.7 GW | AC61: 4.7 GW | AD61: 4.9 GW | AE61: 5.5 GW | AG61: 6.2 GW | AH61: 6.4 GW | AI61: 6.4 GW
A62: RES capacity on total (%) | C62: 32.9% | D62: 0.427 | E62: 0.471 | I62: 33.2% | J62: 35.8 % | K62: 42.7% | M62: 43.1% | N62: 40.8 % | O62: 41.8% | P62: 47.1% | R62: 0.5 | Y62: 0.37 | Z62: 0.427 | AB62: 0.431 | AC62: 40.8% | AD62: 0.418 | AE62: 0.471 | AG62: 0.5 | AH62: 0.5 | AI62: 0.5102215061
A63: RES production | C63: 4,491 GWh | D63: 6.1TWh | E63: 6.2TWh | M63: 1.6 TWh | N63: 1.5 TWh | O63: 1.7 TWh | P63: 1.4 TWh | R63: 1.5 TWh | Y63: 3,358 GWh | Z63: 6.1TWh | AB63: 1.6 TWh | AC63: 3.1TWh | AD63: 4.8 GWh | AE63: 6.2TWh | AG63: 1.5 TWh | AH63: 3.1 ΤWh | AI63: 5.1 ΤWh
A64: RES production on total (%) | C64: 19.9% | D64: 0.297 | E64: 0.295 | M64: 0.337 | N64: 0.325 | O64: 0.275 | P64: 0.255 | R64: 0.271 | Y64: 0.236 | Z64: 0.297 | AB64: 0.337 | AC64: 33.1% | AD64: 0.308 | AE64: 0.295 | AG64: 0.271 | AH64: 0.32 | AI64: 0.3315241926
A65: CO2 emissions intensity (Scope 1) | C65: 0.66 tCO2/MWh | D65: 0.50 tCO2/MWh | E65: 0.49 tCO2/MWh | M65: 0.5 tCO2/MWh | N65: tCO2/MWh | O65: tCO2/MWh | P65: tCO2/MWh | R65: 0.55 tCO2/MWh | Y65: 0.53 tCO2/MWh | Z65: 0.50 tCO2/MWh | AB65: 0.5 tCO2/MWh | AC65: 0.5 tCO2/MWh | AD65: 0.48 tCO2/MWh | AE65: 0.49 tCO2/MWh | AG65: 0.55 tCO2/MWh | AH65: 0.49 tCO2/MWh | AI65: 0.47 tCO2/MWh
A66: CO2 emissions (Scope 1) | C66: 14.8 MtCO2 | D66: 9.7 MtCO2 | E66: 10.3 MtCO2 | M66: 2.3 MtCO2 | N66: MtCO2 | O66: MtCO2 | P66: MtCO2 | R66: 3.1 MtCO2 | Y66: 7.6 MtCO2 | Z66: 9.7 MtCO2 | AB66: 2.3 MtCO2 | AC66: 4.4MtCO2 | AD66: 7.5 MtCO2 | AE66: 10.3 MtCO2 | AG66: 3.1 MtCO2 | AH66: 4.8 MtCO2 | AI66: 7.2 MtCO2
A68: SAIDI (Greece/Romania) | C68: 138/91 mins | D68: 134/89 mins | E68: 132/82 mins | M68: 26/19 mins | N68: mins | O68: mins | P68: mins | R68: 21/19 mins | Y68: 106/66 mins | Z68: 134/89 mins | AB68: 26/19 mins | AC68: 59/38 mins | AD68: 109/60 mins | AE68: 132/82 mins | AG68: 21/19 mins | AH68: 58/36 mins | AI68: 72/56 mins
A69: SAIFI (Greece/Romania) | C69: 1.8/2.6 | D69: 1.8/2.5 | E69: 1.7/2.3 | M69: 0.3/0.6 | R69: 0.3/0.5 | Y69: 1.5/1.9 | Z69: 1.8/2.5 | AB69: 0.3/0.6 | AC69: 0.8/1.2 | AD69: 1.4/1.8 | AE69: 1.7/2.3 | AG69: 0.3/0.5 | AH69: 0.72/0.96 | AI69: 0.96/1.45
A70: Total network length | C70: 377 k km | D70: 380 k km | E70: 386 k km | M70: 383 k km | N70: k km | O70: k km | P70: k km | R70: 388 k km | Y70: 247/133 k km | Z70: 380 k km | AB70: 383 k km | AC70: 383 k km | AD70: 385 k km | AE70: 386 k km | AG70: 388 k km | AH70: 388 k km | AI70: 389 k km
A72: Online penetration/myPPC app (Greece) | C72: 25.6% | D72: 0.29 | E72: 0.3 | M72: 0.299 | N72: % | O72: % | P72: % | R72: 0.32 | Y72: 0.278 | Z72: 0.29 | AB72: 0.299 | AC72: 30.7% | AD72: 0.317 | AE72: 0.3 | AG72: 0.32 | AH72: 33.5% | AI72: 0.349
A73: Online penetration/myPPC app (Romania) | C73: 0.4 | D73: 0.59 | E73: 0.62 | M73: 0.6 | N73: % | O73: % | P73: % | R73: 0.64 | Y73: 0.582 | Z73: 0.59 | AB73: 0.6 | AC73: 0.61 | AD73: 0.61 | AE73: 0.62 | AG73: 0.64 | AH73: 0.64 | AI73: 0.65
A74: Charging points installed (Greece & Romania) | C74: 1360 | D74: 2401 | E74: 3087 | M74: 2490 | R74: 3267 | Y74: 1731 | Z74: 2401 | AB74: 2490 | AC74: 2696 | AD74: 2925 | AE74: 3087 | AG74: 3267 | AH74: 3509 | AI74: 3752
H77: =Data!$H$1 -> 2023 | M77: =Data!$M$1 -> 2024 | R77: =Data!$R$1 -> 2025 | W77: =Data!$H$1 -> 2023 | AB77: =Data!$M$1 -> 2024 | AG77: =Data!$R$1 -> 2025
A78: Investments (in m) | C78: 2022 | D78: 2023 | E78: 2024 | F78: 2025 | H78: Q1 | I78: Q2 | J78: Q3 | K78: Q4 | M78: Q1 | N78: Q2 | O78: Q3 | P78: Q4 | R78: Q1 | S78: Q2 | T78: Q3 | U78: Q4 | W78: Q1 | X78: H1 | Y78: 9M | Z78: FY | AB78: Q1 | AC78: H1 | AD78: 9M | AE78: FY | AG78: Q1 | AH78: H1 | AI78: 9M | AJ78: FY
A80: Renewables | D80: 843 | E80: 1289 | F80: =AJ80 -> 1084 | M80: 191.631 | N80: =AC80-M80 -> 88.68742386 | O80: =AD80-AC80 -> 64.20757614 | P80: =AE80-AD80 -> 944.474 | R80: 104.046 | S80: =AH80-AG80 -> 332.195 | T80: =AI80-AH80 -> 221.07105 | U80: =AJ80-AI80 -> 426.68795 | W80: =IF(H80>0,SUM($H80:H80),"") ->  | X80: =IF(I80>0,SUM($H80:I80),"") ->  | Y80: =IF(J80>0,SUM($H80:J80),"") ->  | Z80: =IF(K80>0,SUM($H80:K80),"") ->  | AB80: =IF(M80="","",SUM($M80:M80)) -> 191.631 | AC80: 280.3184239 | AD80: 344.526 | AE80: 1289 | AG80: =IF(R80="","",SUM($R80:R80)) -> 104.046 | AH80: 436.241 | AI80: 657.31205 | AJ80: 1084
A81: Distribution | D81: 1342 | E81: 1042.643 | F81: =AJ81 -> 1064.393733 | M81: 228.094 | N81: =AC81-M81 -> 236.231 | O81: =AD81-AC81 -> 256.755 | P81: =AE81-AD81 -> 321.563 | R81: 282.265 | S81: =AH81-AG81 -> 299.492 | T81: =AI81-AH81 -> 235.8953487 | U81: =AJ81-AI81 -> 246.7413843 | W81: =IF(H81>0,SUM($H81:H81),"") ->  | X81: =IF(I81>0,SUM($H81:I81),"") ->  | Y81: =IF(J81>0,SUM($H81:J81),"") ->  | Z81: =IF(K81>0,SUM($H81:K81),"") ->  | AB81: =IF(M81="","",SUM($M81:M81)) -> 228.094 | AC81: 464.325 | AD81: 721.08 | AE81: 1042.643 | AG81: =IF(R81="","",SUM($R81:R81)) -> 282.265 | AH81: 581.757 | AI81: 817.6523487 | AJ81: 1064.393733
A82: Flexible Generation | D82: 298.928 | E82: 245.713 | F82: 289.3427675 | M82: 53.643 | N82: 12.429 | O82: 116.162 | P82: 63.479 | R82: 35.394 | S82: 110.862 | T82: 63.46936123 | U82: 79.61740629 | W82: =IF(H82>0,SUM($H82:H82),"") ->  | X82: =IF(I82>0,SUM($H82:I82),"") ->  | Y82: =IF(J82>0,SUM($H82:J82),"") ->  | Z82: =IF(K82>0,SUM($H82:K82),"") ->  | AB82: =IF(M82="","",SUM($M82:M82)) -> 53.643 | AC82: 66.072 | AD82: 182.234 | AE82: 245.713 | AG82: =IF(R82="","",SUM($R82:R82)) -> 35.394 | AH82: 146.256 | AI82: 209.7253612 | AJ82: 289.3427675
A83: Telecom | D83: 25.803 | E83: 92.822 | F83: 127.6808359 | M83: 10.807 | N83: 20.625 | O83: 14.905 | P83: 46.485 | R83: 18.441 | S83: 27.634 | T83: 34.66804387 | U83: 46.93779201 | W83: =IF(H83>0,SUM($H83:H83),"") ->  | X83: =IF(I83>0,SUM($H83:I83),"") ->  | Y83: =IF(J83>0,SUM($H83:J83),"") ->  | Z83: =IF(K83>0,SUM($H83:K83),"") ->  | AB83: =IF(M83="","",SUM($M83:M83)) -> 10.807 | AC83: 31.432 | AD83: 46.337 | AE83: 92.822 | AG83: =IF(R83="","",SUM($R83:R83)) -> 18.441 | AH83: 46.075 | AI83: 80.74304387 | AJ83: 127.6808359
A84: Digitalization/Efficiency | D84: 32.216 | E84: 66.721 | F84: 127.7079646 | M84: 6.129 | N84: 12.742 | O84: 14.093 | P84: 33.757 | R84: 18.084 | S84: 29.29 | T84: 40.53817632 | U84: 39.79578829 | W84: =IF(H84>0,SUM($H84:H84),"") ->  | X84: =IF(I84>0,SUM($H84:I84),"") ->  | Y84: =IF(J84>0,SUM($H84:J84),"") ->  | Z84: =IF(K84>0,SUM($H84:K84),"") ->  | AB84: =IF(M84="","",SUM($M84:M84)) -> 6.129 | AC84: 18.871 | AD84: 32.964 | AE84: 66.721 | AG84: =IF(R84="","",SUM($R84:R84)) -> 18.084 | AH84: 47.374 | AI84: 87.91217632 | AJ84: 127.7079646
A85: Retail/E-mobility/Other | D85: 48 | E85: 311 | F85: 112.9115969 | M85: 10.425 | N85: 250.15 | O85: 19.421 | P85: 31.004 | R85: 18.155 | S85: 24.911 | T85: 20.56764947 | U85: 49.27794742 | W85: =IF(H85>0,SUM($H85:H85),"") ->  | X85: =IF(I85>0,SUM($H85:I85),"") ->  | Y85: =IF(J85>0,SUM($H85:J85),"") ->  | Z85: =IF(K85>0,SUM($H85:K85),"") ->  | AB85: =IF(M85="","",SUM($M85:M85)) -> 10.425 | AC85: 260.575 | AD85: 279.996 | AE85: 311 | AG85: =IF(R85="","",SUM($R85:R85)) -> 18.155 | AH85: 43.066 | AI85: 63.63364947 | AJ85: 112.9115969

Sheet Demand (IPTO) (hidden)
A1: IPTO | B1: Jan | C1: Feb | D1: Mar | E1: Apr | F1: May | G1: Jun | H1: Jul | I1: Aug | J1: Sep | K1: Oct | L1: Nov | M1: Dec | O1: Q1 | P1: Q2 | Q1: Q3 | R1: Q4 | S1: FY
A2: 2023 | B2: 4244 | C2: 4097 | D2: 4009 | E2: 3609 | F2: 3662 | G2: 3898 | H2: 5530 | I2: 4951 | J2: 3847 | K2: 3679 | L2: 3750 | M2: 4214 | O2: =B2+C2+D2 -> 12350 | P2: =E2+F2+G2 -> 11169 | Q2: =H2+I2+J2 -> 14328 | R2: =K2+L2+M2 -> 11643 | S2: =SUM(B2:M2) -> 49490
A3: 2024 | B3: 4536 | C3: 4011 | D3: 3911 | E3: 3555 | F3: 3660 | G3: 4900.5 | H3: 5803 | I3: 5170 | J3: 4089 | K3: 3837 | L3: 3989 | M3: 4351 | O3: =B3+C3+D3 -> 12458 | P3: =E3+F3+G3 -> 12115.5 | Q3: =H3+I3+J3 -> 15062 | R3: =K3+L3+M3 -> 12177 | S3: =SUM(B3:M3) -> 51812.5
A4: 2025 2 | B4: 4443.58 | C4: 4274.44 | D4: 4034.36 | E4: 3687.16 | F4: 3725.1 | G4: 4562.77 | H4: 5714.47 | I4: 4768.2 | J4: 4195.95 | K4: 3840.32 | L4: 3778.42 | M4: 4345.96 | O4: =B4+C4+D4 -> 12752.38 | P4: =E4+F4+G4 -> 11975.03 | Q4: =H4+I4+J4 -> 14678.62 | R4: =K4+L4+M4 -> 11964.7 | S4: =SUM(B4:M4) -> 51370.73
A7: IPTO (excluding pumping)1 | B7: Jan | C7: Feb | D7: Mar | E7: Apr | F7: May | G7: Jun | H7: Jul | I7: Aug | J7: Sep | K7: Oct | L7: Nov | M7: Dec | O7: Q1 | P7: Q2 | Q7: Q3 | R7: Q4 | S7: FY
A8: 2023 | B8: 4212 | C8: 4079 | D8: 3974 | E8: 3576 | F8: 3624 | G8: 3876 | H8: 5519 | I8: 4938 | J8: 3824 | K8: 3663 | L8: 3707 | M8: 4173 | O8: =B8+C8+D8 -> 12265 | P8: =E8+F8+G8 -> 11076 | Q8: =H8+I8+J8 -> 14281 | R8: =K8+L8+M8 -> 11543 | S8: =SUM(B8:M8) -> 49165
A9: 2024 | B9: 4484 | C9: 3970 | D9: 3848 | E9: 3485 | F9: 3600 | G9: 4846 | H9: 5759 | I9: 5112 | J9: 4014 | K9: 3753 | L9: 3945 | M9: 4302 | O9: =B9+C9+D9 -> 12302 | P9: =E9+F9+G9 -> 11931 | Q9: =H9+I9+J9 -> 14885 | R9: =K9+L9+M9 -> 12000 | S9: =SUM(B9:M9) -> 51118
A10: 2025 2 | B10: =B4-35.7 -> 4407.88 | C10: =C4-28.32 -> 4246.12 | D10: =D4-94.68 -> 3939.68 | E10: =E4-101.3 -> 3585.86 | F10: =F4-101.43 -> 3623.67 | G10: =G4-90.6 -> 4472.17 | H10: =H4-60.98 -> 5653.49 | I10: =I4-89.88 -> 4678.32 | J10: =J4-80.98 -> 4114.97 | K10: =K4-78.04 -> 3762.28 | L10: =L4-65.37 -> 3713.05 | M10: =M4-25.82 -> 4320.14 | O10: =B10+C10+D10 -> 12593.68 | P10: =E10+F10+G10 -> 11681.7 | Q10: =H10+I10+J10 -> 14446.78 | R10: =K10+L10+M10 -> 11795.47 | S10: =SUM(B10:M10) -> 50517.63
A12: 1. Total Demand is defined as the generation on the mainland and the interconnected islands required to supply the Load (excluding pumping). More specifically, the estimation of Total Demand includes the estimation of System Demand and the estimation of demand covered by production units connected to the Network. Network generation results from certified measurements for the Medium Voltage and measurements and estimations for the Low Voltage. 2. Provisional data for March 2025.

Sheet Dashboard

Sheet Demand
I1: =Data!W1 -> 2023 | N1: =Data!$M$1 -> 2024 | S1: =Data!$R$1 -> 2025 | X1: YoY Change
B2: Greece (in GWh) | D2: 2022 | E2: 2023 | F2: 2024 | G2: 2025 | I2: =IF(Data!$A$1=TRUE,Data!H2,Data!W2) -> Q1 | J2: =IF(Data!$A$1=TRUE,Data!I2,Data!X2) -> Q2 | K2: =IF(Data!$A$1=TRUE,Data!J2,Data!Y2) -> Q3 | L2: =IF(Data!$A$1=TRUE,Data!K2,Data!Z2) -> Q4 | N2: =IF(Data!$A$1=TRUE,Data!H2,Data!W2) -> Q1 | O2: =IF(Data!$A$1=TRUE,Data!I2,Data!X2) -> Q2 | P2: =IF(Data!$A$1=TRUE,Data!J2,Data!Y2) -> Q3 | Q2: =IF(Data!$A$1=TRUE,Data!K2,Data!Z2) -> Q4 | S2: =IF(Data!$A$1=TRUE,Data!M2,Data!AB2) -> Q1 | T2: =IF(Data!$A$1=TRUE,Data!N2,Data!AC2) -> Q2 | U2: =IF(Data!$A$1=TRUE,Data!O2,Data!AD2) -> Q3 | V2: =IF(Data!$A$1=TRUE,Data!P2,Data!AE2) -> Q4 | X2: =N2 -> Q1 | Y2: =O2 -> Q2 | Z2: =P2 -> Q3 | AA2: =Q2 -> Q4
B4: PPC sales | D4: =Data!C4 -> 29882 | E4: =Data!D4 -> 26044.66 | F4: =Data!E4 -> 24792.4 | G4: =Data!F4 -> 24421.73755 | I4: =IF(Data!$A$1=TRUE,Data!H4,Data!W4) -> 6865.45 | J4: =IF(Data!$A$1=TRUE,Data!I4,Data!X4) -> 5688.86 | K4: =IF(Data!$A$1=TRUE,Data!J4,Data!Y4) -> 7480.54 | L4: =IF(Data!$A$1=TRUE,Data!K4,Data!Z4) -> 6009.81 | N4: =IF(Data!$A$1=TRUE,Data!M4,Data!AB4) -> 5768.37 | O4: =IF(Data!$A$1=TRUE,Data!N4,Data!AC4) -> 5786.96 | P4: =IF(Data!$A$1=TRUE,Data!O4,Data!AD4) -> 7169.98 | Q4: =IF(Data!$A$1=TRUE,Data!P4,Data!AE4) -> 6067.09 | S4: =IF(Data!$A$1=TRUE,IF(Data!R4="","",Data!R4),Data!AG4) -> 5886.741111 | T4: =IF(Data!$A$1=TRUE,IF(Data!S4="","",Data!S4),Data!AH4) -> 5724.875419 | U4: =IF(Data!$A$1=TRUE,IF(Data!T4="","",Data!T4),Data!AI4) -> 7312.925855 | V4: =IF(Data!$A$1=TRUE,IF(Data!U4="","",Data!U4),Data!AJ4) -> 5497.195169 | X4: =IF(ISERROR(S4/N4-1),"",S4/N4-1) -> 0.02052072086 | Y4: =IF(ISERROR(T4/O4-1),"",T4/O4-1) -> -0.01072835838 | Z4: =IF(ISERROR(U4/P4-1),"",U4/P4-1) -> 0.01993671594 | AA4: =IF(ISERROR(V4/Q4-1),"",V4/Q4-1) -> -0.09393215382
B7: Domestic Demand (Mainland & NII)1 | D7: =Data!C7 -> 55576 | E7: =Data!D7 -> 54066.73 | F7: =Data!E7 -> 57146.48918 | G7: =Data!F7 -> 56429.49863 | I7: =IF(Data!$A$1=TRUE,Data!H7,Data!W7) -> 13232.42 | J7: =IF(Data!$A$1=TRUE,Data!I7,Data!X7) -> 12291.9 | K7: =IF(Data!$A$1=TRUE,Data!J7,Data!Y7) -> 15968.66 | L7: =IF(Data!$A$1=TRUE,Data!K7,Data!Z7) -> 12573.75 | N7: =IF(Data!$A$1=TRUE,Data!M7,Data!AB7) -> 13500.99455 | O7: =IF(Data!$A$1=TRUE,Data!N7,Data!AC7) -> 13469.41212 | P7: =IF(Data!$A$1=TRUE,Data!O7,Data!AD7) -> 16891.5929 | Q7: =IF(Data!$A$1=TRUE,Data!P7,Data!AE7) -> 13284.48961 | S7: =IF(Data!$A$1=TRUE,IF(Data!R7="","",Data!R7),Data!AG7) -> 13761.14192 | T7: =IF(Data!$A$1=TRUE,IF(Data!S7="","",Data!S7),Data!AH7) -> 13252.1224 | U7: =IF(Data!$A$1=TRUE,IF(Data!T7="","",Data!T7),Data!AI7) -> 16475.19001 | V7: =IF(Data!$A$1=TRUE,IF(Data!U7="","",Data!U7),Data!AJ7) -> 12941.0443 | X7: =IF(ISERROR(S7/N7-1),"",S7/N7-1) -> 0.01926875664 | Y7: -0.01613208621 | Z7: -0.02465148779 | AA7: -0.02585310556
B8: Total Demand (Mainland)2 | D8: =Data!C8 -> 50688 | E8: =Data!D8 -> 49490 | F8: =Data!E8 -> 51812.5 | G8: =Data!F8 -> 51370.73 | I8: =IF(Data!$A$1=TRUE,Data!H8,Data!W8) -> 12350 | J8: =IF(Data!$A$1=TRUE,Data!I8,Data!X8) -> 11169 | K8: =IF(Data!$A$1=TRUE,Data!J8,Data!Y8) -> 14328 | L8: =IF(Data!$A$1=TRUE,Data!K8,Data!Z8) -> 11643 | N8: =IF(Data!$A$1=TRUE,Data!M8,Data!AB8) -> 12458 | O8: =IF(Data!$A$1=TRUE,Data!N8,Data!AC8) -> 12115.5 | P8: =IF(Data!$A$1=TRUE,Data!O8,Data!AD8) -> 15062 | Q8: =IF(Data!$A$1=TRUE,Data!P8,Data!AE8) -> 12177 | S8: =IF(Data!$A$1=TRUE,IF(Data!R8="","",Data!R8),Data!AG8) -> 12752.38 | T8: =IF(Data!$A$1=TRUE,IF(Data!S8="","",Data!S8),Data!AH8) -> 11975.03 | U8: =IF(Data!$A$1=TRUE,IF(Data!T8="","",Data!T8),Data!AI8) -> 14678.62 | V8: =IF(Data!$A$1=TRUE,IF(Data!U8="","",Data!U8),Data!AJ8) -> 11964.7 | X8: 0.02362979611 | Y8: -0.01159423879 | Z8: -0.02545345904 | AA8: -0.01743450768
B10: 1. Source: Company data. Domestic Demand is Total Demand minus exports. 2. Source: IPTO. Based on provisional data for Q4 2025 and FY 2025.
X11: YoY Change
B12: Romania (in GWh) | D12: 2022 | E12: 2023 | F12: 2024 | G12: 2025 | I12: =IF(Data!$A$1=TRUE,Data!H2,Data!W2) -> Q1 | J12: =IF(Data!$A$1=TRUE,Data!I2,Data!X2) -> Q2 | K12: =IF(Data!$A$1=TRUE,Data!J2,Data!Y2) -> Q3 | L12: =IF(Data!$A$1=TRUE,Data!K2,Data!Z2) -> Q4 | N12: =IF(Data!$A$1=TRUE,Data!H2,Data!W2) -> Q1 | O12: =IF(Data!$A$1=TRUE,Data!I2,Data!X2) -> Q2 | P12: =IF(Data!$A$1=TRUE,Data!J2,Data!Y2) -> Q3 | Q12: =IF(Data!$A$1=TRUE,Data!K2,Data!Z2) -> Q4 | S12: =IF(Data!$A$1=TRUE,Data!M2,Data!AB2) -> Q1 | T12: =IF(Data!$A$1=TRUE,Data!N2,Data!AC2) -> Q2 | U12: =IF(Data!$A$1=TRUE,Data!O2,Data!AD2) -> Q3 | V12: =IF(Data!$A$1=TRUE,Data!P2,Data!AE2) -> Q4 | X12: =N2 -> Q1 | Y12: =O2 -> Q2 | Z12: =P2 -> Q3 | AA12: =Q2 -> Q4
B14: PPC Romania sales | D14: =Data!C16 -> 9852 | E14: =Data!D16 -> 8237.9 | F14: =Data!E16 -> 7696.869755 | G14: =Data!F16 -> 7445.014976 | I14: =IF(Data!$A$1=TRUE,Data!H16,Data!W16) -> 2338.52 | J14: =IF(Data!$A$1=TRUE,Data!I16,Data!X16) -> 1946.58 | K14: =IF(Data!$A$1=TRUE,Data!J16,Data!Y16) -> 2032.6 | L14: =IF(Data!$A$1=TRUE,Data!K16,Data!Z16) -> 1920.2 | N14: =IF(Data!$A$1=TRUE,Data!M16,Data!AB16) -> 1892.581807 | O14: =IF(Data!$A$1=TRUE,Data!N16,Data!AC16) -> 1747.50593 | P14: =IF(Data!$A$1=TRUE,Data!O16,Data!AD16) -> 2035.307969 | Q14: =IF(Data!$A$1=TRUE,Data!P16,Data!AE16) -> 2021.47405 | S14: =IF(Data!$A$1=TRUE,IF(Data!R16="","",Data!R16),Data!AG16) -> 1992.901213 | T14: =IF(Data!$A$1=TRUE,IF(Data!S16="","",Data!S16),Data!AH16) -> 1761.902371 | U14: =IF(Data!$A$1=TRUE,IF(Data!T16="","",Data!T16),Data!AI16) -> 1863.594417 | V14: =IF(Data!$A$1=TRUE,IF(Data!U16="","",Data!U16),Data!AJ16) -> 1826.616975 | X14: =IF(ISERROR(S14/N14-1),"",S14/N14-1) -> 0.0530066419 | Y14: =IF(ISERROR(T14/O14-1),"",T14/O14-1) -> 0.008238278768 | Z14: =IF(ISERROR(U14/P14-1),"",U14/P14-1) -> -0.08436735597 | AA14: =IF(ISERROR(V14/Q14-1),"",V14/Q14-1) -> -0.09639355737
B16: Demand3 | D16: =Data!C19 -> 53726.82888 | E16: =Data!D19 -> 51052.46 | F16: =Data!E19 -> 53329.52075 | G16: =Data!F19 -> 53027.70316 | I16: =IF(Data!$A$1=TRUE,Data!H19,Data!W19) -> 13327.63 | J16: =IF(Data!$A$1=TRUE,Data!I19,Data!X19) -> 11989.05 | K16: =IF(Data!$A$1=TRUE,Data!J19,Data!Y19) -> 12524.88 | L16: =IF(Data!$A$1=TRUE,Data!K19,Data!Z19) -> 13210.9 | N16: =IF(Data!$A$1=TRUE,Data!M19,Data!AB19) -> 13740.45573 | O16: =IF(Data!$A$1=TRUE,Data!N19,Data!AC19) -> 12409.27662 | P16: =IF(Data!$A$1=TRUE,Data!O19,Data!AD19) -> 13184.59673 | Q16: =IF(Data!$A$1=TRUE,Data!P19,Data!AE19) -> 13995.19167 | S16: =IF(Data!$A$1=TRUE,IF(Data!R19="","",Data!R19),Data!AG19) -> 13919.38504 | T16: =IF(Data!$A$1=TRUE,IF(Data!S19="","",Data!S19),Data!AH19) -> 12465.21756 | U16: =IF(Data!$A$1=TRUE,IF(Data!T19="","",Data!T19),Data!AI19) -> 12935.79995 | V16: =IF(Data!$A$1=TRUE,IF(Data!U19="","",Data!U19),Data!AJ19) -> 13707.30061 | X16: =IF(ISERROR(S16/N16-1),"",S16/N16-1) -> 0.01302207953 | Y16: =IF(ISERROR(T16/O16-1),"",T16/O16-1) -> 0.004507994232 | Z16: =IF(ISERROR(U16/P16-1),"",U16/P16-1) -> -0.01887026144 | AA16: =IF(ISERROR(V16/Q16-1),"",V16/Q16-1) -> -0.02057071173
B18: 3. Source: Transelectrica. Based on provisional data for Q4 2025 and FY 2025. 4. Revised based on the updated figures of Transelectrica

Sheet Generation
I1: =Data!$H$1 -> 2023 | N1: =Data!$M$1 -> 2024 | S1: =Data!$R$1 -> 2025 | X1: YoY Change
B2: Greece (in GWh) | D2: 2022 | E2: 2023 | F2: 2024 | G2: 2025 | I2: =IF(Data!$A$1=TRUE,Data!H24,Data!W24) -> Q1 | J2: =IF(Data!$A$1=TRUE,Data!I24,Data!X24) -> Q2 | K2: =IF(Data!$A$1=TRUE,Data!J24,Data!Y24) -> Q3 | L2: =IF(Data!$A$1=TRUE,Data!K24,Data!Z24) -> Q4 | N2: =IF(Data!$A$1=TRUE,Data!H24,Data!W24) -> Q1 | O2: =IF(Data!$A$1=TRUE,Data!I24,Data!X24) -> Q2 | P2: =IF(Data!$A$1=TRUE,Data!J24,Data!Y24) -> Q3 | Q2: =IF(Data!$A$1=TRUE,Data!K24,Data!Z24) -> Q4 | S2: =IF(Data!$A$1=TRUE,IF(Data!M24="","",Data!M24),Data!AB24) -> Q1 | T2: =IF(Data!$A$1=TRUE,IF(Data!N24="","",Data!N24),Data!AC24) -> Q2 | U2: =IF(Data!$A$1=TRUE,IF(Data!O24="","",Data!O24),Data!AD24) -> Q3 | V2: =IF(Data!$A$1=TRUE,IF(Data!P24="","",Data!P24),Data!AE24) -> Q4 | X2: =N2 -> Q1 | Y2: =O2 -> Q2 | Z2: =P2 -> Q3 | AA2: =Q2 -> Q4
B4: PPC Generation | D4: =SUM(D5:D8) -> 22602 | E4: =SUM(E5:E8) -> 19279.73 | F4: =SUM(F5:F8) -> 19614.5438 | G4: =SUM(G5:G8) -> 18664.51147 | I4: =SUM(I5:I8) -> 4286.24 | J4: 3861.87 | K4: 6069.17 | L4: 5062.45 | N4: =SUM(N5:N8) -> 4244.215856 | O4: =SUM(O5:O8) -> 4446.646505 | P4: =SUM(P5:P8) -> 6059.701515 | Q4: =SUM(Q5:Q8) -> 4863.97992 | S4: =IF(SUM(S5:S8)=0,"",SUM(S5:S8)) -> 4991.680273 | T4: =IF(SUM(T5:T8)=0,"",SUM(T5:T8)) -> 3741.933687 | U4: =IF(SUM(U5:U8)=0,"",SUM(U5:U8)) -> 5012.069121 | V4: =IF(SUM(V5:V8)=0,"",SUM(V5:V8)) -> 4918.828387 | X4: =IF(ISERROR(S4/N4-1),"",S4/N4-1) -> 0.1761136668 | Y4: =IF(ISERROR(T4/O4-1),"",T4/O4-1) -> -0.1584818622 | Z4: =IF(ISERROR(U4/P4-1),"",U4/P4-1) -> -0.1728851481 | AA4: =IF(ISERROR(V4/Q4-1),"",V4/Q4-1) -> 0.01127645827
B5: Lignite | D5: =Data!C27 -> 5460 | E5: =Data!D27 -> 4513.21 | F5: =Data!E27 -> 3236.310282 | G5: =Data!F27 -> 2722.916589 | I5: =IF(Data!$A$1=TRUE,Data!H27,Data!W27) -> 1445.47 | J5: =IF(Data!$A$1=TRUE,Data!I27,Data!X27) -> 693.39 | K5: =IF(Data!$A$1=TRUE,Data!J27,Data!Y27) -> 1149.96 | L5: =IF(Data!$A$1=TRUE,Data!K27,Data!Z27) -> 1224.39 | N5: =IF(Data!$A$1=TRUE,Data!M27,Data!AB27) -> 1050.233862 | O5: =IF(Data!$A$1=TRUE,Data!N27,Data!AC27) -> 448.140922 | P5: =IF(Data!$A$1=TRUE,Data!O27,Data!AD27) -> 826.165174 | Q5: =IF(Data!$A$1=TRUE,Data!P27,Data!AE27) -> 911.770324 | S5: =IF(Data!$A$1=TRUE,IF(Data!R27="","",Data!R27),Data!AG27) -> 1127.214346 | T5: =IF(Data!$A$1=TRUE,IF(Data!S27="","",Data!S27),Data!AH27) -> 285.345368 | U5: =IF(Data!$A$1=TRUE,IF(Data!T27="","",Data!T27),Data!AI27) -> 503.901819 | V5: =IF(Data!$A$1=TRUE,IF(Data!U27="","",Data!U27),Data!AJ27) -> 806.455056 | X5: =IF(ISERROR(S5/N5-1),"",S5/N5-1) -> 0.07329842122 | Y5: =IF(ISERROR(T5/O5-1),"",T5/O5-1) -> -0.363268664 | Z5: =IF(ISERROR(U5/P5-1),"",U5/P5-1) -> -0.3900713382 | AA5: =IF(ISERROR(V5/Q5-1),"",V5/Q5-1) -> -0.1155063564
B6: Gas | D6: =Data!C28 -> 8678 | E6: =Data!D28 -> 6284.39 | F6: =Data!E28 -> 7711.397673 | G6: =Data!F28 -> 7650.411149 | I6: =IF(Data!$A$1=TRUE,Data!H28,Data!W28) -> 1179.57 | J6: =IF(Data!$A$1=TRUE,Data!I28,Data!X28) -> 1417.35 | K6: =IF(Data!$A$1=TRUE,Data!J28,Data!Y28) -> 2048.47 | L6: =IF(Data!$A$1=TRUE,Data!K28,Data!Z28) -> 1639 | N6: =IF(Data!$A$1=TRUE,Data!M28,Data!AB28) -> 1330.389647 | O6: =IF(Data!$A$1=TRUE,Data!N28,Data!AC28) -> 1774.720771 | P6: =IF(Data!$A$1=TRUE,Data!O28,Data!AD28) -> 2297.512184 | Q6: =IF(Data!$A$1=TRUE,Data!P28,Data!AE28) -> 2308.775071 | S6: =IF(Data!$A$1=TRUE,IF(Data!R28="","",Data!R28),Data!AG28) -> 2253.067081 | T6: =IF(Data!$A$1=TRUE,IF(Data!S28="","",Data!S28),Data!AH28) -> 1426.019487 | U6: =IF(Data!$A$1=TRUE,IF(Data!T28="","",Data!T28),Data!AI28) -> 1685.043704 | V6: =IF(Data!$A$1=TRUE,IF(Data!U28="","",Data!U28),Data!AJ28) -> 2286.280877 | X6: 0.693539247 | Y6: -0.1964823367 | Z6: -0.2665789911 | AA6: -0.009742912717
B7: Oil | D7: =Data!C29 -> 3973 | E7: =Data!D29 -> 3685.01 | F7: =Data!E29 -> 3870.421698 | G7: =Data!F29 -> 3613.239576 | I7: =IF(Data!$A$1=TRUE,Data!H29,Data!W29) -> 680.37 | J7: =IF(Data!$A$1=TRUE,Data!I29,Data!X29) -> 849.33 | K7: =IF(Data!$A$1=TRUE,Data!J29,Data!Y29) -> 1395.4 | L7: =IF(Data!$A$1=TRUE,Data!K29,Data!Z29) -> 759.91 | N7: =IF(Data!$A$1=TRUE,Data!M29,Data!AB29) -> 678.8471535 | O7: =IF(Data!$A$1=TRUE,Data!N29,Data!AC29) -> 979.7633051 | P7: =IF(Data!$A$1=TRUE,Data!O29,Data!AD29) -> 1434.005172 | Q7: =IF(Data!$A$1=TRUE,Data!P29,Data!AE29) -> 777.806067 | S7: =IF(Data!$A$1=TRUE,IF(Data!R29="","",Data!R29),Data!AG29) -> 681.0664701 | T7: =IF(Data!$A$1=TRUE,IF(Data!S29="","",Data!S29),Data!AH29) -> 892.754709 | U7: =IF(Data!$A$1=TRUE,IF(Data!T29="","",Data!T29),Data!AI29) -> 1369.756195 | V7: =IF(Data!$A$1=TRUE,IF(Data!U29="","",Data!U29),Data!AJ29) -> 669.6622018 | X7: 0.003269243502 | Y7: -0.08880573055 | Z7: -0.0448038674 | AA7: -0.1390370553
B8: RES (incl. Large Hydro) | D8: =Data!C30 -> 4491 | E8: =Data!D30 -> 4797.12 | F8: =Data!E30 -> 4796.414144 | G8: =Data!F30 -> 4677.944154 | I8: =IF(Data!$A$1=TRUE,Data!H30,Data!W30) -> 980.83 | J8: =IF(Data!$A$1=TRUE,Data!I30,Data!X30) -> 901.8 | K8: =IF(Data!$A$1=TRUE,Data!J30,Data!Y30) -> 1475.34 | L8: =IF(Data!$A$1=TRUE,Data!K30,Data!Z30) -> 1439.15 | N8: =IF(Data!$A$1=TRUE,Data!M30,Data!AB30) -> 1184.745194 | O8: =IF(Data!$A$1=TRUE,Data!N30,Data!AC30) -> 1244.021507 | P8: =IF(Data!$A$1=TRUE,Data!O30,Data!AD30) -> 1502.018985 | Q8: =IF(Data!$A$1=TRUE,Data!P30,Data!AE30) -> 865.6284582 | S8: =IF(Data!$A$1=TRUE,IF(Data!R30="","",Data!R30),Data!AG30) -> 930.3323763 | T8: =IF(Data!$A$1=TRUE,IF(Data!S30="","",Data!S30),Data!AH30) -> 1137.814123 | U8: =IF(Data!$A$1=TRUE,IF(Data!T30="","",Data!T30),Data!AI30) -> 1453.367404 | V8: =IF(Data!$A$1=TRUE,IF(Data!U30="","",Data!U30),Data!AJ30) -> 1156.430252 | X8: -0.2147405355 | Y8: -0.08537423518 | Z8: -0.03239078989 | AA8: 0.3359429683
B11: International (in GWh) | D11: 2022 | E11: 2023 | F11: 2024 | G11: 2025 | I11: =IF(Data!$A$1=TRUE,Data!H24,Data!W24) -> Q1 | J11: =IF(Data!$A$1=TRUE,Data!I24,Data!X24) -> Q2 | K11: =IF(Data!$A$1=TRUE,Data!J24,Data!Y24) -> Q3 | L11: =IF(Data!$A$1=TRUE,Data!K24,Data!Z24) -> Q4 | N11: =IF(Data!$A$1=TRUE,Data!H24,Data!W24) -> Q1 | O11: =IF(Data!$A$1=TRUE,Data!I24,Data!X24) -> Q2 | P11: =IF(Data!$A$1=TRUE,Data!J24,Data!Y24) -> Q3 | Q11: =IF(Data!$A$1=TRUE,Data!K24,Data!Z24) -> Q4 | S11: =IF(Data!$A$1=TRUE,IF(Data!M24="","",Data!M24),Data!AB24) -> Q1 | T11: =IF(Data!$A$1=TRUE,IF(Data!N24="","",Data!N24),Data!AC24) -> Q2 | U11: =IF(Data!$A$1=TRUE,IF(Data!O24="","",Data!O24),Data!AD24) -> Q3 | V11: =IF(Data!$A$1=TRUE,IF(Data!P24="","",Data!P24),Data!AE24) -> Q4 | X11: =N11 -> Q1 | Y11: =O11 -> Q2 | Z11: =P11 -> Q3 | AA11: =Q11 -> Q4
B13: PPC Generation | E13: =SUM(E14:E16) -> 1334.62 | F13: =SUM(F14:F16) -> 1394.558834 | G13: =SUM(G14:G16) -> 2239.784317 | N13: =SUM(N14:N16) -> 370.598819 | O13: 295.430004 | P13: 222.5870254 | Q13: 505.942986 | S13: =SUM(S14:S16) -> 582.880007 | T13: 500.339561 | U13: 469.5594983 | V13: =SUM(V14:V16) -> 687.0052507 | X13: =IF(ISERROR(S13/N13-1),"",S13/N13-1) -> 0.5728058945 | Y13: =IF(ISERROR(T13/O13-1),"",T13/O13-1) -> 0.6935976516 | Z13: =IF(ISERROR(U13/P13-1),"",U13/P13-1) -> 1.109554667 | AA13: =IF(ISERROR(V13/Q13-1),"",V13/Q13-1) -> 0.357870886
B14: RES (Wind) | E14: =IF(Data!D38=0,"",Data!D38) -> 1244.59 | F14: =IF(Data!E38=0,"",Data!E38) -> 1271.822866 | G14: =IF(Data!F38=0,"",Data!F38) -> 2060.43085 | I14: =IF(Data!$A$1=TRUE,Data!#REF!,Data!#REF!) ->  | J14: =IF(Data!$A$1=TRUE,Data!#REF!,Data!#REF!) ->  | K14: =IF(Data!$A$1=TRUE,Data!#REF!,Data!#REF!) ->  | L14: =IF(Data!$A$1=TRUE,Data!#REF!,Data!#REF!) ->  | N14: =IF(Data!$A$1=TRUE,Data!M38,Data!AB38) -> 348.755585 | O14: =IF(Data!$A$1=TRUE,Data!N38,Data!AC38) -> 252.203977 | P14: =IF(Data!$A$1=TRUE,Data!O38,Data!AD38) -> 184.2469434 | Q14: =IF(Data!$A$1=TRUE,Data!P38,Data!AE38) -> 486.616361 | S14: =IF(Data!$A$1=TRUE,IF(Data!R38="","",Data!R38),Data!AG38) -> 552.958406 | T14: =IF(Data!$A$1=TRUE,IF(Data!S38="","",Data!S38),Data!AH38) -> 438.719647 | U14: =IF(Data!$A$1=TRUE,IF(Data!T38="","",Data!T38),Data!AI38) -> 406.7681943 | V14: =IF(Data!$A$1=TRUE,IF(Data!U38="","",Data!U38),Data!AJ38) -> 661.9846027 | X14: =IF(ISERROR(S14/N14-1),"",S14/N14-1) -> 0.5855184255 | Y14: =IF(ISERROR(T14/O14-1),"",T14/O14-1) -> 0.7395429375 | Z14: =IF(ISERROR(U14/P14-1),"",U14/P14-1) -> 1.207733744 | AA14: 0.3603829541
B15: RES (Solar) | D15: =IF(Data!C44=0,"",Data!C44) ->  | E15: =IF(Data!D39=0,"",Data!D39) -> 90.03 | F15: =IF(Data!E39=0,"",Data!E39) -> 119.035968 | G15: =IF(Data!F39=0,"",Data!F39) -> 152.453352 | I15: =IF(Data!$A$1=TRUE,Data!#REF!,Data!#REF!) ->  | J15: =IF(Data!$A$1=TRUE,Data!#REF!,Data!#REF!) ->  | K15: =IF(Data!$A$1=TRUE,Data!#REF!,Data!#REF!) ->  | L15: =IF(Data!$A$1=TRUE,Data!#REF!,Data!#REF!) ->  | N15: =IF(Data!$A$1=TRUE,Data!M39,Data!AB39) -> 21.843234 | O15: =IF(Data!$A$1=TRUE,Data!N39,Data!AC39) -> 43.226027 | P15: =IF(Data!$A$1=TRUE,Data!O39,Data!AD39) -> 38.340082 | Q15: =IF(Data!$A$1=TRUE,Data!P39,Data!AE39) -> 15.626625 | S15: =IF(Data!$A$1=TRUE,IF(Data!R39="","",Data!R39),Data!AG39) -> 24.233268 | T15: =IF(Data!$A$1=TRUE,IF(Data!S39="","",Data!S39),Data!AH39) -> 50.195524 | U15: =IF(Data!$A$1=TRUE,IF(Data!T39="","",Data!T39),Data!AI39) -> 57.209362 | V15: =IF(Data!$A$1=TRUE,IF(Data!U39="","",Data!U39),Data!AJ39) -> 20.815198 | X15: =IF(ISERROR(S15/N15-1),"",S15/N15-1) -> 0.109417589 | Y15: =IF(ISERROR(T15/O15-1),"",T15/O15-1) -> 0.1612338094 | Z15: =IF(ISERROR(U15/P15-1),"",U15/P15-1) -> 0.4921554419 | AA15: 0.3320341404
B16: RES (Other) | D16: =IF(Data!C45=0,"",Data!C45) -> 0.4344533292 | E16: =IF(Data!D40=0,"",Data!D40) ->  | F16: =IF(Data!E40=0,"",Data!E40) -> 3.7 | G16: =IF(Data!F40=0,"",Data!F40) -> 26.900115 | I16: =IF(Data!$A$1=TRUE,Data!#REF!,Data!#REF!) ->  | J16: =IF(Data!$A$1=TRUE,Data!#REF!,Data!#REF!) ->  | K16: =IF(Data!$A$1=TRUE,Data!#REF!,Data!#REF!) ->  | L16: =IF(Data!$A$1=TRUE,Data!#REF!,Data!#REF!) ->  | N16: =IF(Data!$A$1=TRUE,Data!M40,Data!AB40) -> 0 | O16: =IF(Data!$A$1=TRUE,Data!N40,Data!AC40) -> 0 | P16: =IF(Data!$A$1=TRUE,Data!O40,Data!AD40) -> 0 | Q16: =IF(Data!$A$1=TRUE,Data!P40,Data!AE40) -> 3.7 | S16: =IF(Data!$A$1=TRUE,IF(Data!R40="","",Data!R40),Data!AG40) -> 5.688333 | T16: =IF(Data!$A$1=TRUE,IF(Data!S40="","",Data!S40),Data!AH40) -> 11.42439 | U16: =IF(Data!$A$1=TRUE,IF(Data!T40="","",Data!T40),Data!AI40) -> 5.581942 | V16: =IF(Data!$A$1=TRUE,IF(Data!U40="","",Data!U40),Data!AJ40) -> 4.20545 | X16: =IF(ISERROR(S16/N16-1),"",S16/N16-1) ->  | Y16: =IF(ISERROR(T16/O16-1),"",T16/O16-1) ->  | Z16: =IF(ISERROR(U16/P16-1),"",U16/P16-1) ->  | AA16: =IF(ISERROR(V16/Q16-1),"",V16/Q16-1) -> 0.1366081081
B18: Sources: Company data, IPTO, Transelectrica. Based on provisional data for Q4 2025 and FY 2025.

Sheet Market Shares
I1: =Data!$H$1 -> 2023 | N1: =Data!$M$1 -> 2024 | S1: =Data!$R$1 -> 2025
B2: PPC Market Shares (Greece) | D2: 2022 | E2: 2023 | F2: 2024 | G2: 2025 | I2: =IF(Data!$A$1=TRUE,Data!H43,Data!W43) -> Q1 | J2: =IF(Data!$A$1=TRUE,Data!I43,Data!X43) -> Q2 | K2: =IF(Data!$A$1=TRUE,Data!J43,Data!Y43) -> Q3 | L2: =IF(Data!$A$1=TRUE,Data!K43,Data!Z43) -> Q4 | N2: =IF(Data!$A$1=TRUE,Data!H43,Data!W43) -> Q1 | O2: =IF(Data!$A$1=TRUE,Data!I43,Data!X43) -> Q2 | P2: =IF(Data!$A$1=TRUE,Data!J43,Data!Y43) -> Q3 | Q2: =IF(Data!$A$1=TRUE,Data!K43,Data!Z43) -> Q4 | S2: =IF(Data!$A$1=TRUE,IF(Data!M43="","",Data!M43),IF(Data!AB43="","",Data!AB43)) -> Q1 | T2: =IF(Data!$A$1=TRUE,IF(Data!N43="","",Data!N43),IF(Data!AC43="","",Data!AC43)) -> Q2 | U2: =IF(Data!$A$1=TRUE,IF(Data!O43="","",Data!O43),IF(Data!AD43="","",Data!AD43)) -> Q3 | V2: =IF(Data!$A$1=TRUE,IF(Data!P43="","",Data!P43),IF(Data!AE43="","",Data!AE43)) -> Q4
B4: Generation Market Share (average) | D4: =Data!C45 -> 0.4344533292 | E4: =Data!D45 -> 0.395283067 | F4: =Data!E45 -> 0.343096384 | G4: =Data!F45 -> 0.3161416314 | I4: =IF(Data!$A$1=TRUE,Data!H45,Data!W45) -> 0.3909543733 | J4: =IF(Data!$A$1=TRUE,Data!I45,Data!X45) -> 0.3552173733 | K4: =IF(Data!$A$1=TRUE,Data!J45,Data!Y45) -> 0.4041737479 | L4: =IF(Data!$A$1=TRUE,Data!K45,Data!Z45) -> 0.4245999495 | N4: =IF(Data!$A$1=TRUE,Data!M45,Data!AB45) -> 0.3321836644 | O4: =IF(Data!$A$1=TRUE,Data!N45,Data!AC45) -> 0.3249949435 | P4: =IF(Data!$A$1=TRUE,Data!O45,Data!AD45) -> 0.3702303944 | Q4: =IF(Data!$A$1=TRUE,Data!P45,Data!AE45) -> 0.3391211492 | S4: =IF(Data!$A$1=TRUE,IF(Data!R45="","",Data!R45),IF(Data!AG45="","",Data!AG45)) -> 0.3436050874 | T4: =IF(Data!$A$1=TRUE,IF(Data!S45="","",Data!S45),IF(Data!AH45="","",Data!AH45)) -> 0.2865861713 | U4: =IF(Data!$A$1=TRUE,IF(Data!T45="","",Data!T45),IF(Data!AI45="","",Data!AI45)) -> 0.2898344635 | V4: =IF(Data!$A$1=TRUE,IF(Data!U45="","",Data!U45),IF(Data!AJ45="","",Data!AJ45)) -> 0.3473434559
B6: Retail Market Share (average) | D6: =Data!C47 -> 0.6239325162 | E6: =Data!D47 -> 0.5651024043 | F6: =Data!E47 -> 0.5065759618 | G6: =Data!F47 -> 0.5043388218 | I6: =IF(Data!$A$1=TRUE,Data!H47,Data!W47) -> 0.6079983067 | J6: =IF(Data!$A$1=TRUE,Data!I47,Data!X47) -> 0.5530220106 | K6: =IF(Data!$A$1=TRUE,Data!J47,Data!Y47) -> 0.5598129701 | L6: =IF(Data!$A$1=TRUE,Data!K47,Data!Z47) -> 0.5391380874 | N6: =IF(Data!$A$1=TRUE,Data!M47,Data!AB47) -> 0.5061851898 | O6: =IF(Data!$A$1=TRUE,Data!N47,Data!AC47) -> 0.4990522512 | P6: =IF(Data!$A$1=TRUE,Data!O47,Data!AD47) -> 0.5088029543 | Q6: =IF(Data!$A$1=TRUE,Data!P47,Data!AE47) -> 0.5116625624 | S6: =IF(Data!$A$1=TRUE,IF(Data!R47="","",Data!R47),IF(Data!AG47="","",Data!AG47)) -> 0.5015162387 | T6: =IF(Data!$A$1=TRUE,IF(Data!S47="","",Data!S47),IF(Data!AH47="","",Data!AH47)) -> 0.502366468 | U6: =IF(Data!$A$1=TRUE,IF(Data!T47="","",Data!T47),IF(Data!AI47="","",Data!AI47)) -> 0.5209478434 | V6: =IF(Data!$A$1=TRUE,IF(Data!U47="","",Data!U47),IF(Data!AJ47="","",Data!AJ47)) -> 0.4885596054
B7: Retail Market Share (Mainland end of period)1 | D7: =Data!C48 -> 0.6329 | E7: =Data!D48 -> 0.5611 | F7: =Data!E48 -> 0.5192 | G7: =Data!F48 -> 0.4983 | I7: =IF(Data!$A$1=TRUE,Data!H48,Data!W48) -> 0.6153 | J7: =IF(Data!$A$1=TRUE,Data!I48,Data!X48) -> 0.5499 | K7: =IF(Data!$A$1=TRUE,Data!J48,Data!Y48) -> 0.541 | L7: =IF(Data!$A$1=TRUE,Data!K48,Data!Z48) -> 0.5611 | N7: =IF(Data!$A$1=TRUE,Data!M48,Data!AB48) -> 0.5085 | O7: =IF(Data!$A$1=TRUE,Data!N48,Data!AC48) -> 0.5253 | P7: =IF(Data!$A$1=TRUE,Data!O48,Data!AD48) -> 0.506 | Q7: =IF(Data!$A$1=TRUE,Data!P48,Data!AE48) -> 0.5192 | S7: =IF(Data!$A$1=TRUE,IF(Data!R48="","",Data!R48),IF(Data!AG48="","",Data!AG48)) -> 0.4987 | T7: =IF(Data!$A$1=TRUE,IF(Data!S48="","",Data!S48),IF(Data!AH48="","",Data!AH48)) -> 0.4959 | U7: =IF(Data!$A$1=TRUE,IF(Data!T48="","",Data!T48),IF(Data!AI48="","",Data!AI48)) -> 0.4921 | V7: =IF(Data!$A$1=TRUE,IF(Data!U48="","",Data!U48),IF(Data!AJ48="","",Data!AJ48)) -> 0.4983
B10: PPC Market Shares (Romania)2
B11: Generation Market Share on RES (average)³ | E11: =Data!D53 -> 0.1410329297 | F11: =Data!E53 -> 0.1558477436 | G11: =Data!F53 -> 0.2371772285 | I11: =IF(Data!$A$1=TRUE,Data!H53,Data!W53) -> 0.1441079938 | J11: =IF(Data!$A$1=TRUE,Data!I53,Data!X53) -> 0.1304897359 | K11: =IF(Data!$A$1=TRUE,Data!J53,Data!Y53) -> 0.1449697257 | L11: =IF(Data!$A$1=TRUE,Data!K53,Data!Z53) -> 0.1432698297 | N11: =IF(Data!$A$1=TRUE,Data!M53,Data!AB53) -> 0.1433875232 | O11: =IF(Data!$A$1=TRUE,Data!N53,Data!AC53) -> 0.1410352887 | P11: =IF(Data!$A$1=TRUE,Data!O53,Data!AD53) -> 0.1073283733 | Q11: =IF(Data!$A$1=TRUE,Data!P53,Data!AE53) -> 0.2327452958 | S11: =IF(Data!$A$1=TRUE,IF(Data!R53="","",Data!R53),IF(Data!AG53="","",Data!AG53)) -> 0.2638696503 | T11: =IF(Data!$A$1=TRUE,IF(Data!S53="","",Data!S53),IF(Data!AH53="","",Data!AH53)) -> 0.2044285377 | U11: =IF(Data!$A$1=TRUE,IF(Data!T53="","",Data!T53),IF(Data!AI53="","",Data!AI53)) -> 0.1981534044 | V11: =IF(Data!$A$1=TRUE,IF(Data!U53="","",Data!U53),IF(Data!AJ53="","",Data!AJ53)) -> 0.2831186004
B12: Retail Market Share (average) | E12: =Data!D54 -> 0.1787160836 | F12: =Data!E54 -> 0.159992836 | G12: =Data!F54 -> 0.1543163401 | I12: =IF(Data!$A$1=TRUE,Data!H54,Data!W54) -> 0.2062819984 | J12: =IF(Data!$A$1=TRUE,Data!I54,Data!X54) -> 0.176247535 | K12: =IF(Data!$A$1=TRUE,Data!J54,Data!Y54) -> 0.1711864978 | L12: =IF(Data!$A$1=TRUE,Data!K54,Data!Z54) -> 0.1621763146 | N12: =IF(Data!$A$1=TRUE,Data!M54,Data!AB54) -> 0.157385559 | O12: =IF(Data!$A$1=TRUE,Data!N54,Data!AC54) -> 0.1523746765 | P12: =IF(Data!$A$1=TRUE,Data!O54,Data!AD54) -> 0.1659627948 | Q12: =IF(Data!$A$1=TRUE,Data!P54,Data!AE54) -> 0.1636776032 | S12: =IF(Data!$A$1=TRUE,IF(Data!R54="","",Data!R54),IF(Data!AG54="","",Data!AG54)) -> 0.1638998766 | T12: =IF(Data!$A$1=TRUE,IF(Data!S54="","",Data!S54),IF(Data!AH54="","",Data!AH54)) -> 0.1521583477 | U12: =IF(Data!$A$1=TRUE,IF(Data!T54="","",Data!T54),IF(Data!AI54="","",Data!AI54)) -> 0.1518035001 | V12: =IF(Data!$A$1=TRUE,IF(Data!U54="","",Data!U54),IF(Data!AJ54="","",Data!AJ54)) -> 0.1493538478
B14: Source: Company data. Based on provisional data for Q4 2025 and FY 2025. 1. ΕnEx monthly reports 2. ANRE 3. Market Share in RES excl. Large Hydro

Sheet Installed Capacity
D2: 31.12.2023 | E2: 31.12.2024 | F2: 31.03.2025 | G2: 30.06.2025 | H2: 30.09.2025 | I2: 31.12.2025
B4: Installed Capacity (in MW) - Greece | D4: =SUM(D5:D8) -> 10106.64 | E4: 10273.03 | F4: 11002.05 | G4: 11090 | H4: 11067.5775 | I4: 10734.71319
B5: Gas | D5: 2689.25 | E5: 2689.25 | F5: 2689.25 | G5: 2689 | H5: 2689.25 | I5: 2689.25
B6: Oil | D6: 1820.69 | E6: 1802.6 | F6: 1848 | G6: 1848 | H6: 1755.412 | I6: 1870.032
B7: Lignite | D7: 1625 | E7: 1655 | F7: 1655 | G7: 1655 | H7: 1655 | I7: 660
B8: RES | D8: =SUM(D9:D12) -> 3971.7 | E8: 4126.18 | F8: =SUM(F9:F12) -> 4809.8 | G8: =SUM(G9:G12) -> 4898 | H8: =SUM(H9:H12) -> 4967.9155 | I8: 5515.43119
B9: Large Hydro | D9: 3170.7 | E9: 3170.7 | F9: 3170.7 | G9: 3171 | H9: 3170.7 | I9: 3170.7
B10: Wind | D10: 273 | E10: 273.24 | F10: 316.24 | G10: 319 | H10: 319.1 | I10: 1854.51669
B11: Solar | D11: 445 | E11: 599.24 | F11: 1240.24 | G11: 1323 | H11: 1393.4 | I11: 355.499
B12: Other | D12: 83 | E12: 83 | F12: 82.62 | G12: 85 | H12: 84.7155 | I12: 134.7155
D14: =D2 -> 31.12.2023 | E14: =E2 -> 31.12.2024 | F14: =F2 -> 31.03.2025 | G14: 30.06.2025 | H14: 30.09.2025 | I14: 31.12.2025
B16: Installed Capacity (in MW) - Romania | D16: =SUM(D17:D19) -> 597 | E16: 1336 | F16: 1336 | G16: 1336 | H16: 1336.351 | I16: 1561.07364
B17: Wind | D17: 499 | E17: 1183 | F17: 1183 | G17: 1183 | H17: 1183 | I17: 1183
B18: Solar | D18: 98 | E18: 124 | F18: 124 | G18: 124 | H18: 124 | I18: 339.92264
B19: Other | D19: 0 | E19: 29 | F19: 29 | G19: 29 | H19: 29.351 | I19: 38.151
D21: =D2 -> 31.12.2023 | E21: =E2 -> 31.12.2024 | F21: =F2 -> 31.03.2025 | G21: 30.06.2025 | H21: 30.09.2025 | I21: 31.12.2025
B23: Installed Capacity (in MW) - Bulgaria | D23: =D24 -> 0 | E23: =E24 -> 18 | F23: =F24 -> 18 | G23: =G24 -> 18 | H23: =H24 -> 18 | I23: =SUM(I24:I25) -> 48
B24: Wind | D24: 0 | E24: 18 | F24: 18 | G24: 18 | H24: 18 | I24: 18
B25: Solar | I25: 30
D27: =D2 -> 31.12.2023 | E27: =E2 -> 31.12.2024 | F27: 31.03.2025 | G27: 30.06.2025 | H27: 30.09.2025 | I27: 31.12.2025
B29: Installed Capacity (in MW) - Italy | D29: =D30 -> 0 | E29: =E30 -> 0 | F29: =F30 -> 32 | G29: =G30 -> 32 | H29: =H30 -> 32 | I29: =I30 -> 49.6362
B30: Solar | F30: 32 | G30: 32 | H30: 32 | I30: 49.6362
D32: =D2 -> 31.12.2023 | E32: =E2 -> 31.12.2024 | F32: =F2 -> 31.03.2025 | G32: 30.06.2025 | H32: 30.09.2025 | I32: 31.12.2025
B34: Installed Capacity (in MW) - GROUP | D34: =SUM(D35:D38) -> 10703.64 | E34: 11627.03 | F34: =SUM(F35:F38) -> 12388.05 | G34: =SUM(G35:G38)+1 -> 12477 | H34: =SUM(H35:H38) -> 12453.9285 | I34: =SUM(I35:I38) -> 12393.41303
B35: Gas | D35: =D5 -> 2689.25 | E35: 2689.25 | F35: 2689.25 | G35: =G5 -> 2689 | H35: =H5 -> 2689.25 | I35: 2689.25
B36: Oil | D36: 1820.69 | E36: 1802.6 | F36: 1848 | G36: =G6 -> 1848 | H36: =H6 -> 1755.412 | I36: 1870.032
B37: Lignite | D37: 1625 | E37: 1655 | F37: 1655 | G37: =G7 -> 1655 | H37: =H7 -> 1655 | I37: 660
B38: RES | D38: =SUM(D39:D42) -> 4568.7 | E38: 5480.18 | F38: =SUM(F39:F42) -> 6195.8 | G38: =SUM(G39:G42) -> 6284 | H38: =SUM(H39:H42) -> 6354.2665 | I38: 7174.13103
B39: Large Hydro | D39: =D9 -> 3170.7 | E39: =E9 -> 3170.7 | F39: =F9 -> 3170.7 | G39: =G9 -> 3171 | H39: =H9 -> 3170.7 | I39: 3170.7
B40: Wind | D40: =D10+D17+D24 -> 772 | E40: =E10+E17+E24 -> 1474.24 | F40: =F10+F17+F24 -> 1517.24 | G40: =G10+G17+G24 -> 1520 | H40: =H10+H17+H24 -> 1520.1 | I40: 2274.06553
B41: Solar | D41: =D11+D18+D30 -> 543 | E41: =E11+E18+E30 -> 723.24 | F41: =F11+F18+F30 -> 1396.24 | G41: =G11+G18+G30 -> 1479 | H41: =H11+H18+H30 -> 1549.4 | I41: 1556.499
B42: Other | D42: =D12+D19 -> 83 | E42: =E12+E19 -> 112 | F42: =F12+F19 -> 111.62 | G42: =G12+G19 -> 114 | H42: =H12+H19 -> 114.0665 | I42: 172.8665

Sheet Other Operational KPIs
H1: =Data!$H$1 -> 2023 | M1: =Data!$M$1 -> 2024 | R1: =Data!$R$1 -> 2025
B2: Other Operational KPIs | D2: 2022 | E2: 2023 | F2: 2024 | H2: =IF(Data!$A$1=TRUE,Data!H2,Data!W2) -> Q1 | I2: =IF(Data!$A$1=TRUE,Data!I2,Data!X2) -> Q2 | J2: =IF(Data!$A$1=TRUE,Data!J2,Data!Y2) -> Q3 | K2: =IF(Data!$A$1=TRUE,Data!K2,Data!Z2) -> Q4 | M2: Q1 | N2: H1 | O2: 9M | P2: FY | R2: Q1 | S2: H1 | T2: 9M | U2: FY
B4: RES capacity | D4: 3.48 GW | E4: 4.6 GW | F4: 5.5 GW | J4: 3.8 GW | K4: 4.6 GW | M4: 4.7 GW | N4: 4.7 GW | O4: 4.9 GW | P4: 5.5 GW | R4: 6.2 GW | S4: 6.3 GW | T4: 6.4 GW | U4: 7.2 GW
B5: RES capacity on total (%) | D5: 32.9% | E5: 0.427 | F5: 0.471 | J5: 0.37 | K5: 0.427 | M5: 0.431 | N5: 0.408 | O5: 0.418 | P5: 0.471 | R5: 0.5 | S5: 0.5 | T5: 0.5102215061 | U5: 0.58
B6: RES production | D6: 4,491 GWh | E6: 6.1TWh | F6: 6.2TWh | J6: 3,358 GWh | K6: 6.1TWh | M6: 1.6 TWh | N6: 3.1TWh | O6: 4.8 TWh | P6: 6.2TWh | R6: 1.5 TWh | S6: 3.1 ΤWh | T6: 5.1 ΤWh | U6: 6.9 TWh
B7: RES production on total (%) | D7: 19.9% | E7: 0.297 | F7: 0.295 | J7: 0.236 | K7: 0.297 | M7: 0.337 | N7: 33.1% | O7: 0.308 | P7: 0.295 | R7: 0.271 | S7: 0.32 | T7: 0.3315241926 | U7: 0.331
B8: CO2 emissions intensity (Scope 1) | D8: 0.66 tCO2/MWh | E8: 0.50 tCO2/MWh | F8: 0.49 tCO2/MWh | J8: 0.53 tCO2/MWh | K8: 0.50 tCO2/MWh | M8: 0.50 tCO2/MWh | N8: 0.47 tCO2/MWh | O8: 0.48 tCO2/MWh | P8: 0.49 tCO2/MWh | R8: 0.55 tCO2/MWh | S8: 0.49 tCO2/MWh | T8: 0.47 tCO2/MWh | U8: 0.47 tCO2/MWh
B9: CO2 emissions (Scope 1) | D9: 14.8 MtCO2 | E9: 9.7 MtCO2 | F9: 10.3 MtCO2 | J9: 7.6 MtCO2 | K9: 9.7 MtCO2 | M9: 2.3 MtCO2 | N9: 4.4MtCO2 | O9: 7.5 MtCO2 | P9: 10.3 MtCO2 | R9: 3.1 MtCO2 | S9: 4.8 MtCO2 | T9: 7.2 MtCO2 | U9: 9.8 MtCO2
B11: SAIDI (Greece/Romania)1 | D11: 138/91 mins | E11: 134/89 mins | F11: 132/82 mins | J11: 106/66 mins | K11: 134/89 mins | M11: 26/19 mins | N11: 59/38 mins | O11: 109/60 mins | P11: 132/82 mins | R11: 21/19 mins | S11: 58/36 mins | T11: 83/56 mins | U11: 110/79 mins
B12: SAIFI (Greece/Romania)1 | D12: 1.8/2.6 | E12: 1.8/2.5 | F12: 1.7/2.3 | J12: 1.5/1.9 | K12: 1.8/2.5 | M12: 0.3/0.6 | N12: 0.78/1.15 | O12: 1.4/1.8 | P12: 1.7/2.3 | R12: 0.3/0.5 | S12: 0.72/0.96 | T12: 1.24/1.45 | U12: 1.64/1.98
B13: Total network length (Greece and Romania) | D13: 377 k km | E13: 380 k km | F13: 386 k km | J13: 247/133 k km | K13: 380 k km | M13: 383 k km | N13: 383 k km | O13: 385 k km | P13: 386 k km | R13: 388 k km | S13: 388 k km | T13: 389 k km | U13: 397 k km
B15: Online penetration/myPPC app (Greece) | D15: 25.6% | E15: 0.29 | F15: 0.3 | J15: 0.278 | K15: 0.29 | M15: 0.299 | N15: 30.7% | O15: 0.317 | P15: 0.3 | R15: 0.32 | S15: 33.5% | T15: 0.349 | U15: 0.362
B16: Online penetration/myPPC app (Romania) | D16: 0.4 | E16: 0.59 | F16: 0.62 | J16: 0.582 | K16: 0.59 | M16: 0.6 | N16: 0.6 | O16: 0.61 | P16: 0.62 | R16: 0.64 | S16: 0.64 | T16: 0.65 | U16: 0.65
B17: Charging points installed (Greece & Romania) | D17: 1360 | E17: 2401 | F17: 3087 | J17: 1731 | K17: 2401 | M17: 2490 | N17: 2696 | O17: 2925 | P17: 3087 | R17: 3267 | S17: 3509 | T17: 3752 | U17: 4276
B19: 1. Based on provisional data for Q4 2025 and FY 2025.

Sheet Income Statement
B2: Consolidated Income Statement (Condensed) | D2: GROUP
B4: (in €m - except share and per share data) | C4: 01.01.2022-31.12.2022 | D4: 01.01.2023-31.12.2023 | E4: 01.01.2024-31.12.2024 | G4: 01.01.2025-30.06.2025 | H4: 01.01.2024-30.06.2024 | J4: 01.01.2024-30.09.2024 | K4: 01.01.2025-30.09.2025 | L4: 01.01.2025-31.12.2025
B5: REVENUES:
B6: Revenue from energy sales | C6: 10712.719 | D6: 6409.218 | E6: 6588.461 | G6: 3455.049 | H6: 2968.174 | J6: 4905.461 | K6: 5396.052 | L6: 7016.835
B7: Revenue from natural gas sales | C7: 4.92 | D7: 58.558 | E7: 189.418 | G7: 128.936 | H7: 113.895 | J7: 123.813 | K7: 140.647 | L7: 196.258
B8: Other sales | C8: 535.468 | D8: 1218.991 | E8: 2200.728 | G8: 1061.567 | H8: 943.698 | J8: 1553.104 | K8: 1730.902 | L8: 2487.936
B9: Total | C9: =SUM(C6:C8) -> 11253.107 | D9: =SUM(D6:D8) -> 7686.767 | E9: =SUM(E6:E8) -> 8978.607 | G9: =SUM(G6:G8) -> 4645.552 | H9: =SUM(H6:H8) -> 4025.767 | J9: =SUM(J6:J8) -> 6582.378 | K9: =SUM(K6:K8) -> 7267.601 | L9: 9701.029
B11: EXPENSES:
B12: Payroll cost | C12: 768.554 | D12: 782.156 | E12: 939.209 | G12: 534.321 | H12: 440.946 | J12: 681.21 | K12: 777.589 | L12: 1123.038
B13: Merchandise | C13: 0 | D13: 1.126 | E13: 428.288 | G13: 271.149 | H13: 107.619 | J13: 239.324 | K13: 411.507 | L13: 632.94
B14: Liquid Fuels | C14: 853.239 | D14: 724.522 | E14: 725.205 | G14: 300.7 | H14: 297.269 | J14: 585.309 | K14: 575.304 | L14: 696.755
B15: Natural Gas | C15: 1758.161 | D15: 739.939 | E15: 882.731 | G15: 462.36 | H15: 380.368 | J15: 608.136 | K15: 620.026 | L15: 841.165
B16: Depreciation and amortization | C16: 640.38 | D16: 672.159 | E16: 928.364 | G16: 557.946 | H16: 446.541 | J16: 683.609 | K16: 847.709 | L16: 1110.676
B17: Energy purchases | C17: 4720.24 | D17: 1944.223 | E17: 1722.349 | G17: 967.685 | H17: 658.413 | J17: 1255.199 | K17: 1461.905 | L17: 1885.973
B18: Emission allowances | C18: 1037.545 | D18: 826.209 | E18: 833.153 | G18: 332.849 | H18: 362.015 | J18: 607.545 | K18: 504.377 | L18: 706.063
B19: Provisions for expected credit losses | C19: 207.526 | D19: 186.262 | E19: 46.84 | G19: -41.706 | H19: 116.066 | J19: 123.947 | K19: 14.66 | L19: 63.475
B20: Financial (income)/expense, net | C20: 288.987 | D20: 282.437 | E20: 373.752 | G20: 220.956 | H20: 180.519 | J20: 260.762 | K20: 334.734 | L20: 462.081
B21: Impairment loss on assets, bargain purchase gain and gain from remeasurment of investment in associates | C21: -197.675 | D21: -209.457 | E21: 207.211 | G21: -6.914 | H21: 1.492 | J21: 14.022 | K21: -10.855 | L21: 1.403
B22: (Gains)/losses from associates and joint ventures | C22: -61.677 | D22: 5.08 | E22: 3.512 | G22: -4.624 | H22: -0.734 | J22: 0.546 | K22: -7.781 | L22: -8.114
B23: Other (income) / expenses, net | C23: 1263.823 | D23: 1100.688 | E23: 1681.394 | G23: 834.12 | H23: 784.245 | J23: 1254.777 | K23: 1218.12 | L23: 1737.372
B24: Total | C24: =SUM(C12:C23) -> 11279.103 | D24: =SUM(D12:D23) -> 7055.344 | E24: =SUM(E12:E23) -> 8772.008 | G24: =SUM(G12:G23) -> 4428.842 | H24: =SUM(H12:H23) -> 3774.759 | J24: =SUM(J12:J23) -> 6314.386 | K24: =SUM(K12:K23) -> 6747.295 | L24: 9252.827
B26: PROFIT/(LOSS) BEFORE TAX | C26: =C9-C24 -> -25.996 | D26: =D9-D24 -> 631.423 | E26: =E9-E24 -> 206.599 | G26: =G9-G24 -> 216.71 | H26: =H9-H24 -> 251.008 | J26: =J9-J24 -> 267.992 | K26: =K9-K24 -> 520.306 | L26: 448.202
B27: Income tax | C27: 17.081 | D27: -137.231 | E27: -19.429 | G27: -69.058 | H27: -61.982 | J27: -68.738 | K27: -139.982 | L27: -88.749
B29: NET PROFIT / (LOSS) | C29: =C26+C27 -> -8.915 | D29: =D26+D27 -> 494.192 | E29: =E26+E27 -> 187.17 | G29: =G26+G27 -> 147.652 | H29: =H26+H27 -> 189.026 | J29: =J26+J27 -> 199.254 | K29: =K26+K27 -> 380.324 | L29: 359.453
B32: Attributable to:
B33: Shareholders of the company | C33: -19.003 | D33: 437.532 | E33: 151.788 | G33: 126.362 | H33: 124.902 | J33: =+J29-J34 -> 122.003 | K33: =+K29-K34 -> 337.524 | L33: 295.0506393
B34: Non – controlling interests | C34: 10.088 | D34: 56.66 | E34: 35.382 | G34: 21.29 | H34: 64.124 | J34: 77.251 | K34: 42.8 | L34: 64.40236069
B36: Earnings / (Losses) per share, basic and dilluted | C36: -0.02 | D36: 1.181 | E36: 0.43 | G36: 0.3638408888 | H36: 0.3451296568 | J36: 0.339 | K36: 0.968 | L36: 0.846048402
B38: Weighted average number of shares (in m.) | C38: 380104130 | D38: 370.370209 | E38: 352.673699 | G38: 347.299193 | H38: 361.897346 | J38: 360.2107999 | K38: 348.56065 | L38: 348.7396686
B40: 1. For 2023: Restated figures compared to those published on 31.12.2023. For additional information, please see Note 6 of the Annual Financial Report 2024 (https://www.ppcgroup.com/media/wluldx1q/financial-report-2024.pdf).

Sheet Cash Flow
B2: Consolidated Cash Flow Statement (Condensed) | D2: GROUP
B4: (in €m) | C4: 01.01.2022-31.12.2022 | D4: 01.01.2023-31.12.2023 | E4: 01.01.2024-31.12.2024 | G4: 01.01.2024-31.03.2024 | H4: 01.01.2025-31.03.2025 | J4: 01.01.2025-30.06.2025 | K4: 01.01.2024-30.06.2024 | M4: 01.01.2024-30.09.2024 | N4: 01.01.2025-30.09.2025 | O4: 01.01.2025-31.12.2025
B6: Cash Flows from Operating activities
B8: Profit / (Loss) before tax | C8: -25.996 | D8: 631.423 | E8: 206.599 | G8: 121.802 | H8: 62.389 | J8: 216.71 | K8: 251.008 | M8: 267.992 | N8: 520.306 | O8: 448.202
B10: Adjustments:
B11: Depreciation and amortization | C11: 619.883 | D11: 632.815 | E11: 863.561 | G11: 203.892 | H11: 259.308 | J11: 530.684 | K11: 418.025 | M11: 633.785 | N11: 802.901 | O11: 1046.367
B12: Unbilled revenue | C12: -154.882 | D12: 226.804 | E12: 169.135 | G12: 158.016 | H12: 11.424 | J12: 46.561 | K12: 216.889 | M12: 342.783 | N12: 123.871 | O12: 41.49016697
B13: Bargain gain from Romanian subsidiaries acqusition | C13: 0 | D13: -243.175 | E13: 0 | G13: 0 | H13: 0 | O13: -
B14: Other adjustments | C14: 37.683 | D14: 192.362 | E14: 254.294 | G14: 119.905 | H14: -28.437 | J14: 17.834 | K14: 103.957 | M14: 179.32 | N14: -4.828 | O14: 155.5439507
B15: Operating profit/(loss) before working capital changes | C15: =SUM(C8:C14) -> 476.688 | D15: =SUM(D8:D14) -> 1440.229 | E15: =SUM(E8:E14) -> 1493.589 | G15: =SUM(G8:G14) -> 603.615 | H15: =SUM(H8:H14) -> 304.684 | J15: =SUM(J8:J14) -> 811.789 | K15: =SUM(K8:K14) -> 989.879 | M15: =SUM(M8:M14) -> 1423.88 | N15: =SUM(N8:N14) -> 1442.25 | O15: =SUM(O8:O14) -> 1691.603118
B17: (Increase)/decrease in:
B18: Trade receivables | C18: -487.418 | D18: -322.668 | E18: 1.852 | G18: 21.821 | H18: -105.645 | J18: -75.127 | K18: -4.115 | M18: -244.559 | N18: -332.309 | O18: -92.03388437
B19: Inventories | C19: -205.102 | D19: -84.514 | E19: -4.165 | G19: -11.389 | H19: -35.296 | J19: -67.036 | K19: 23.049 | M19: 12.463 | N19: -134.011 | O19: -89.005
B20: Increase/(decrease) in:
B21: Trade payables | C21: 33.67 | D21: 441.952 | E21: 423.75 | G21: -279.081 | H21: -356.85 | J21: -269.183 | K21: -219.867 | M21: -185.878 | N21: -259.769 | O21: 77.157
B22: Proceeds from long-term contract liabilities | C22: 134.216 | D22: 95.472 | E22: 154.691 | G22: 31.572 | H22: 41.841 | J22: 90.297 | K22: 63.618 | M22: 94.855 | N22: 121.223 | O22: 171.4425738
B23: Other receivables/payables | C23: 198.981 | D23: -64.748 | E23: -390.958 | G23: 58.739 | H23: 627.699 | J23: 113.695 | K23: -139.401 | M23: -496.689 | N23: -167.315 | O23: 18.62170605
B25: Net Cash from / (used in) Operating Activities | C25: =SUM(C15,C18:C23) -> 151.035 | D25: =SUM(D15,D18:D23) -> 1505.723 | E25: =SUM(E15,E18:E23) -> 1678.759 | G25: =SUM(G15,G18:G23) -> 425.277 | H25: =SUM(H15,H18:H23) -> 476.433 | J25: =SUM(J15,J18:J23) -> 604.435 | K25: =SUM(K15,K18:K23) -> 713.163 | M25: =SUM(M15,M18:M23) -> 604.072 | N25: =SUM(N15,N18:N23) -> 670.069 | O25: 1777.785513
B27: Cash Flows from Investing Activities
B28: Interest and dividends received | C28: 43.857 | D28: 139.004 | E28: 158.581 | G28: 35.29 | H28: 27.027 | J28: 68.715 | K28: 78.129 | M28: 129.609 | N28: 102.141 | O28: 125.885
B29: Capital expenditure for property, plant and equipment and intangible assets | C29: -686.211 | D29: -1168.056 | E29: -1875.222 | G29: -322.985 | H29: -476.075 | J29: -1073.616 | K29: -709.018 | M29: -1183.869 | N29: -1615.546 | O29: -2296.882854
B30: Investments in subsidiaries and associates | C30: 17.958 | D30: -2.784 | E30: -21.046 | G30: -23.96 | H30: -0.31 | J30: -0.838 | K30: -23.469 | M30: -20.219 | N30: -1.58 | O30: -13.96643087
B31: Proceeds from subsidies and from the sale of subsidiary | C31: 58.336 | D31: 6 | E31: 19.871 | G31: 3.166 | H31: 0.557 | J31: 0.279 | K31: 3.166 | M31: 3.166 | N31: 0.278 | O31: 27.227
B32: Acquisition of subsidiaries, net of cash acquired and Loan receivables from former shareholder | C32: -57.191 | D32: -1744.208 | E32: -976.646 | G32: -153.785 | H32: 0 | J32: -95.062 | K32: -389.106 | M32: -410.462 | N32: -156.198 | O32: -195.9951035
B33: Net Cash from/ (used in) Investing Activities | C33: =SUM(C28:C32) -> -623.251 | D33: =SUM(D28:D32) -> -2770.044 | E33: =SUM(E28:E32) -> -2694.462 | G33: =SUM(G28:G32) -> -462.274 | H33: =SUM(H28:H32) -> -448.801 | J33: =SUM(J28:J32) -> -1100.522 | K33: =SUM(K28:K32) -> -1040.298 | M33: =SUM(M28:M32) -> -1481.775 | N33: =SUM(N28:N32) -> -1670.905 | O33: =SUM(O28:O32) -> -2353.732389
B35: Cash Flows from Financing Activities
B36: Net change in short-term borrowings | C36: -163.004 | D36: -39.968 | E36: -17.079 | G36: 78.284 | H36: 197.273 | J36: 425.854 | K36: 96.555 | M36: 190.133 | N36: 411.732 | O36: -33.321
B37: Proceeds from long-term borrowing | C37: 392.304 | D37: 2424.9 | E37: 2378.163 | G37: 372.479 | H37: 400.887 | J37: 876.479 | K37: 546.684 | M37: 839.275 | N37: 1358.913 | O37: 3288.901031
B38: Principal payments of long-term borrowing | C38: -471.404 | D38: -1276.526 | E38: -1193.018 | G38: -398.012 | H38: -105.623 | J38: -675.063 | K38: -507.229 | M38: -737.389 | N38: -777.866 | O38: -1850.25333
B39: Principal lease payments of right-of-use assets | C39: -39.122 | D39: -49.615 | E39: -86.63 | G39: -14.874 | H39: -17.409 | J39: -39.491 | K39: -35.813 | M39: -64.134 | N39: -60.092 | O39: -100.2237491
B40: Interest paid and loans’ issuance fees | C40: -160.368 | D40: -198.164 | E40: -340.501 | G40: -101.299 | H40: -63.128 | J40: -186.973 | K40: -150.615 | M40: -243.924 | N40: -241.49 | O40: -365.8952543
B41: Dividends paid | C41: -41.65 | D41: -62.475 | E41: -154.896 | G41: 0 | H41: 0 | J41: -29.6 | K41: -44.606 | M41: -134.071 | N41: -167.049 | O41: -167.049194
B42: Treasury shares | C42: -40.683 | D42: -109.125 | E42: -171.548 | G42: -25.217 | H42: -37.156 | J42: -66.18 | K42: -66.204 | M42: -110.65 | N42: -88.387 | O42: -111.3235688
B43: Proceeds from the sale of subsidiary | C43: 1323.276
B44: Share Capital from NCI | C44: 0 | D44: 15.611 | E44: 0 | G44: 0 | H44: 0 | O44: -
B45: Net Cash from / (used in) Financing Activities | C45: =SUM(C36:C44) -> 799.349 | D45: =SUM(D36:D44) -> 704.638 | E45: =SUM(E36:E44) -> 414.491 | G45: =SUM(G36:G44) -> -88.639 | H45: =SUM(H36:H44) -> 374.844 | J45: =SUM(J36:J44) -> 305.026 | K45: =SUM(K36:K44) -> -161.228 | M45: =SUM(M36:M44) -> -260.76 | N45: =SUM(N36:N44) -> 435.761 | O45: =SUM(O36:O44) -> 660.8349348
B47: Net increase / (decrease) in cash and cash equivalents | C47: =C25+C33+C45 -> 327.133 | D47: -559.682 | E47: -601.212 | G47: -125.637 | H47: 402.476 | J47: -191.062 | K47: -488.362 | M47: =+M25+M33+M45 -> -1138.463 | N47: =+N25+N33+N45 -> -565.075 | O47: 84.88805927
B48: Cash and cash equivalents at the beginning of the period | C48: 2832.351 | D48: 3159.484 | E48: 2599.802 | G48: 2599.802 | H48: 1998.59 | J48: 1998.59 | K48: 2599.802 | M48: 2599.802 | N48: 1998.59 | O48: 1998.59
B49: Net foreign exchange difference | J49: -3.35 | K49: 0 | M49: 0 | N49: -5.166057899 | O49: -6.613059265
B50: Cash and cash equivalents at the end of the period | C50: =C47+C48 -> 3159.484 | D50: =D47+D48 -> 2599.802 | E50: 1998.59 | G50: =G47+G48 -> 2474.165 | H50: =H47+H48 -> 2401.066 | J50: =J48+J49+J47 -> 1804.178 | K50: =K48+K49+K47 -> 2111.44 | M50: =M48+M49+M47 -> 1461.339 | N50: =N48+N49+N47 -> 1428.348942 | O50: 2076.865
B52: 1. For 2023: Restated figures compared to those published on 31.12.2023. For additional information, please see Note 6 of the Annual Financial Report 2024 (https://www.ppcgroup.com/media/wluldx1q/financial-report-2024.pdf).

Sheet Balance Sheet
B2: Consolidated Statement of Financial Position (Condensed) | C2: GROUP
B4: (in €m) | C4: 31.12.2023 | D4: 31.12.2024 | F4: 31.03.2025 | G4: 30.06.2025 | H4: 30.09.2025 | I4: 31.12.2025
B6: ASSETS
B8: Non – Current Assets:
B9: Property, plant and equipment, net | C9: 13299.047 | D9: 16160.601 | F9: 16352.556 | G9: 16610.138 | H9: 16823.308 | I9: 17361.969
B10: Intangible assets, net | C10: 1112.555 | D10: 957.249 | F10: 891.763 | G10: 1047.226 | H10: 1017.019 | I10: 1028.692
B11: Deferred tax asset | C11: 292.654 | D11: 645.896 | F11: 643.204 | G11: 618.191 | H11: 543.162 | I11: 613.55001
B12: Other non- current assets | C12: 454.248 | D12: 1100.604 | F12: 1125.369 | G12: 1175.484 | H12: 1192.732 | I12: 1130.015
B13: Total non-current assets | C13: =SUM(C9:C12) -> 15158.504 | D13: =SUM(D9:D12) -> 18864.35 | F13: =SUM(F9:F12) -> 19012.892 | G13: =SUM(G9:G12) -> 19451.039 | H13: =SUM(H9:H12) -> 19576.221 | I13: =SUM(I9:I12) -> 20134.22601
B15: Current Assets:
B16: Inventories | C16: 1046.531 | D16: 1290.348 | F16: 1321.793 | G16: 1346.374 | H16: 1411.399 | I16: 1353.326
B17: Trade receivables | C17: 1552.674 | D17: 1593.04 | F17: 1777.427 | G17: 1701.319 | H17: 1895.086 | I17: 1674.834
B18: Cash and cash equivalents and Restricted cash | C18: 2777.289 | D18: 2378.042 | F18: 2760.787 | G18: 2147.016 | H18: 1828.829 | I18: 2460.073
B19: Other current assets | C19: 3322.33 | D19: 3193.549 | F19: 2667.361 | G19: 2767.457 | H19: 2713.992 | I19: 2838.416
B20: Total Current Assets | C20: =SUM(C16:C19) -> 8698.824 | D20: =SUM(D16:D19) -> 8454.979 | F20: =SUM(F16:F19) -> 8527.368 | G20: =SUM(G16:G19) -> 7962.166 | H20: =SUM(H16:H19) -> 7849.306 | I20: =SUM(I16:I19) -> 8326.649
B22: Total Assets | C22: =C13+C20 -> 23857.328 | D22: =D13+D20 -> 27319.329 | F22: =F13+F20 -> 27540.26 | G22: =G13+G20 -> 27413.205 | H22: =H13+H20 -> 27425.527 | I22: =I13+I20 -> 28460.87501
B24: EQUITY AND LIABILITIES
B25: EQUITY:
B26: Total Equity attributable to owners of the Parent | C26: 4550.75 | D26: 5046.467 | F26: 5076.168 | G26: 5043.77 | H26: 5252.848 | I26: 5156.913
B27: Non-Controlling interests | C27: 813.441 | D27: 994.479 | F27: 1006.89 | G27: 961.336 | H27: 986.91 | I27: 982.899
B28: Total Equity | C28: =SUM(C26:C27) -> 5364.191 | D28: 6040.946 | F28: =SUM(F26:F27) -> 6083.058 | G28: =SUM(G26:G27) -> 6005.106 | H28: =SUM(H26:H27) -> 6239.758 | I28: =SUM(I26:I27) -> 6139.812
B30: Non-Current Liabilities:
B31: Long - term borrowings | C31: 4419.795 | D31: 6233.016 | F31: 5715.574 | G31: 6029.927 | H31: 6257.51 | I31: 7743.365
B32: Provisions | C32: 799.855 | D32: 743.673 | F32: 726.697 | G32: 702.102 | H32: 678.66 | I32: 651.388
B33: Financial liability from NCI Put option | C33: 1431.001 | D33: 1463.914 | F33: 1473.429 | G33: 1482.945 | H33: 1492.46 | I33: 1501.976
B34: Other non-current liabilities | C34: 3916.761 | D34: 4778.912 | F34: 4845.34 | G34: 4830.594 | H34: 4822.965 | I34: 4697.06701
B35: Total Non-Current Liabilities | C35: =SUM(C31:C34) -> 10567.412 | D35: 13219.515 | F35: =SUM(F31:F34) -> 12761.04 | G35: 13045.568 | H35: =SUM(H31:H34) -> 13251.595 | I35: 14593.79601
B37: Current Liabilities:
B38: Trade and other payables | C38: 2095.15 | D38: 2729.14 | F38: 2342.947 | G38: 2449.651 | H38: 2414.122 | I38: 2551.923
B39: Short – term borrowings and Current portion of long - term borrowings | C39: 1421.131 | D39: 922.575 | F39: 1904.936 | G39: 1745.317 | H39: 1870.821 | I39: 743.803
B40: Other current liabilities | C40: 4409.444 | D40: 4407.153 | F40: 4448.279 | G40: 4167.563 | H40: 3649.231 | I40: 4431.541
B41: Total Current Liabilities | C41: =SUM(C38:C40) -> 7925.725 | D41: 8058.868 | F41: =SUM(F38:F40) -> 8696.162 | G41: 8362.531 | H41: =SUM(H38:H40) -> 7934.174 | I41: 7727.267
B43: Total Equity and Liabilities | C43: =C28+C35+C41 -> 23857.328 | D43: 27319.329 | F43: =F28+F35+F41 -> 27540.26 | G43: =G28+G35+G41 -> 27413.205 | H43: =H28+H35+H41 -> 27425.527 | I43: =I28+I35+I41 -> 28460.87501
B45: 1. For 2023: Restated figures compared to those published on 31.12.2023. For additional information, please see Note 6 of the Annual Financial Report 2024 (https://www.ppcgroup.com/media/wluldx1q/financial-report-2024.pdf).
B46: 2. For 2024: Restated figures compared to those published on 31.12.2024. For additional information, please see Note 6 of the Annual Financial Report 2025 (https://www.ppcgroup.com/media/sjqfqosg/annual-financial-report-2025.pdf).

Sheet Investments
G1: =Data!$H$1 -> 2023 | L1: =Data!$M$1 -> 2024 | Q1: =Data!$R$1 -> 2025 | V1: YoY Change (%)
B2: (in €m) | D2: 20231 | E2: 20241 | G2: =IF(Data!$A$1=TRUE,Data!H2,Data!W2) -> Q1 | H2: =IF(Data!$A$1=TRUE,Data!I2,Data!X2) -> Q2 | I2: =IF(Data!$A$1=TRUE,Data!J2,Data!Y2) -> Q3 | J2: =IF(Data!$A$1=TRUE,Data!K2,Data!Z2) -> Q4 | L2: =IF(Data!$A$1=TRUE,Data!H2,Data!W2) -> Q1 | M2: =IF(Data!$A$1=TRUE,Data!I2,Data!X2) -> Q2 | N2: =IF(Data!$A$1=TRUE,Data!J2,Data!Y2) -> Q3 | O2: =IF(Data!$A$1=TRUE,Data!K2,Data!Z2) -> Q4 | Q2: =IF(Data!$A$1=TRUE,Data!H2,Data!W2) -> Q1 | R2: =IF(Data!$A$1=TRUE,Data!I2,Data!X2) -> Q2 | S2: =IF(Data!$A$1=TRUE,Data!O2,Data!AD2) -> Q3 | T2: =IF(Data!$A$1=TRUE,Data!P2,Data!AE2) -> Q4 | V2: =L2 -> Q1 | W2: =M2 -> Q2 | X2: =N2 -> Q3 | Y2: =O2 -> Q4
B4: Investments | D4: =SUM(D6:D11) -> 2589.947 | E4: =SUM(E6:E11) -> 3047.899 | G4: =SUM(G6:G11) -> 0 | H4: =SUM(H6:H11) -> 0 | I4: =SUM(I6:I11) -> 0 | J4: =SUM(J6:J11) -> 0 | L4: =SUM(L6:L11) -> 500.729 | M4: =SUM(M6:M11) -> 620.8644239 | N4: 485.5435761 | O4: 1440.762 | Q4: =IF(SUM(Q6:Q11)=0,"",SUM(Q6:Q11)) -> 476.385 | R4: =IF(SUM(R6:R11)=0,"",SUM(R6:R11)) -> 824.384 | S4: 616.2096296 | T4: 889.0582683 | V4: =IF(ISERROR(Q4/L4-1),"",Q4/L4-1) -> -0.04861711624 | W4: =IF(ISERROR(R4/M4-1),"",R4/M4-1) -> 0.3278003511 | X4: =IF(ISERROR(S4/N4-1),"",S4/N4-1) -> 0.269112928 | Y4: =IF(ISERROR(T4/O4-1),"",T4/O4-1) -> -0.3829249603
B6: Renewables2 | D6: =Data!D80 -> 843 | E6: =Data!E80 -> 1289 | L6: =IF(Data!$A$1=TRUE,Data!M80,Data!AB80) -> 191.631 | M6: =IF(Data!$A$1=TRUE,Data!N80,Data!AC80) -> 88.68742386 | N6: =IF(Data!$A$1=TRUE,Data!O80,Data!AD80) -> 64.20757614 | O6: =IF(Data!$A$1=TRUE,Data!P80,Data!AE80) -> 944.474 | Q6: =IF(Data!$A$1=TRUE,IF(Data!R80="","",Data!R80),Data!AG80) -> 104.046 | R6: =IF(Data!$A$1=TRUE,IF(Data!S80="","",Data!S80),Data!AH80) -> 332.195 | S6: =IF(Data!$A$1=TRUE,IF(Data!T80="","",Data!T80),Data!AI80) -> 221.07105 | T6: =IF(Data!$A$1=TRUE,IF(Data!U80="","",Data!U80),Data!AJ80) -> 426.68795 | V6: =IF(ISERROR(Q6/L6-1),"",Q6/L6-1) -> -0.4570502685 | W6: 2.745683272 | X6: =IF(ISERROR(S6/N6-1),"",S6/N6-1) -> 2.443067988 | Y6: -0.5482268967
B7: Distribution | D7: =Data!D81 -> 1342 | E7: =Data!E81 -> 1042.643 | L7: =IF(Data!$A$1=TRUE,Data!M81,Data!AB81) -> 228.094 | M7: =IF(Data!$A$1=TRUE,Data!N81,Data!AC81) -> 236.231 | N7: =IF(Data!$A$1=TRUE,Data!O81,Data!AD81) -> 256.755 | O7: =IF(Data!$A$1=TRUE,Data!P81,Data!AE81) -> 321.563 | Q7: =IF(Data!$A$1=TRUE,IF(Data!R81="","",Data!R81),Data!AG81) -> 282.265 | R7: =IF(Data!$A$1=TRUE,IF(Data!S81="","",Data!S81),Data!AH81) -> 299.492 | S7: =IF(Data!$A$1=TRUE,IF(Data!T81="","",Data!T81),Data!AI81) -> 235.8953487 | T7: =IF(Data!$A$1=TRUE,IF(Data!U81="","",Data!U81),Data!AJ81) -> 246.7413843 | V7: =IF(ISERROR(Q7/L7-1),"",Q7/L7-1) -> 0.237494191 | W7: =IF(ISERROR(R7/M7-1),"",R7/M7-1) -> 0.2677929654 | X7: =IF(ISERROR(S7/N7-1),"",S7/N7-1) -> -0.08124340834 | Y7: =IF(ISERROR(T7/O7-1),"",T7/O7-1) -> -0.2326810476
B8: Flexible Generation3 | D8: =Data!D82 -> 298.928 | E8: =Data!E82 -> 245.713 | L8: =IF(Data!$A$1=TRUE,Data!M82,Data!AB82) -> 53.643 | M8: =IF(Data!$A$1=TRUE,Data!N82,Data!AC82) -> 12.429 | N8: =IF(Data!$A$1=TRUE,Data!O82,Data!AD82) -> 116.162 | O8: =IF(Data!$A$1=TRUE,Data!P82,Data!AE82) -> 63.479 | Q8: =IF(Data!$A$1=TRUE,IF(Data!R82="","",Data!R82),Data!AG82) -> 35.394 | R8: =IF(Data!$A$1=TRUE,IF(Data!S82="","",Data!S82),Data!AH82) -> 110.862 | S8: =IF(Data!$A$1=TRUE,IF(Data!T82="","",Data!T82),Data!AI82) -> 63.46936123 | T8: =IF(Data!$A$1=TRUE,IF(Data!U82="","",Data!U82),Data!AJ82) -> 79.61740629 | V8: -0.3401935015 | W8: 7.919623461 | X8: -0.4536133914 | Y8: 0.2542322073
B9: Telecom | D9: =Data!D83 -> 25.803 | E9: =Data!E83 -> 92.822 | L9: =IF(Data!$A$1=TRUE,Data!M83,Data!AB83) -> 10.807 | M9: =IF(Data!$A$1=TRUE,Data!N83,Data!AC83) -> 20.625 | N9: =IF(Data!$A$1=TRUE,Data!O83,Data!AD83) -> 14.905 | O9: =IF(Data!$A$1=TRUE,Data!P83,Data!AE83) -> 46.485 | Q9: =IF(Data!$A$1=TRUE,IF(Data!R83="","",Data!R83),Data!AG83) -> 18.441 | R9: =IF(Data!$A$1=TRUE,IF(Data!S83="","",Data!S83),Data!AH83) -> 27.634 | S9: =IF(Data!$A$1=TRUE,IF(Data!T83="","",Data!T83),Data!AI83) -> 34.66804387 | T9: =IF(Data!$A$1=TRUE,IF(Data!U83="","",Data!U83),Data!AJ83) -> 46.93779201 | V9: 0.7063940039 | W9: 0.339830303 | X9: 1.325933839 | Y9: 0.009740604719
B10: Digitalization/Efficiency | D10: =Data!D84 -> 32.216 | E10: =Data!E84 -> 66.721 | L10: =IF(Data!$A$1=TRUE,Data!M84,Data!AB84) -> 6.129 | M10: =IF(Data!$A$1=TRUE,Data!N84,Data!AC84) -> 12.742 | N10: =IF(Data!$A$1=TRUE,Data!O84,Data!AD84) -> 14.093 | O10: =IF(Data!$A$1=TRUE,Data!P84,Data!AE84) -> 33.757 | Q10: =IF(Data!$A$1=TRUE,IF(Data!R84="","",Data!R84),Data!AG84) -> 18.084 | R10: =IF(Data!$A$1=TRUE,IF(Data!S84="","",Data!S84),Data!AH84) -> 29.29 | S10: =IF(Data!$A$1=TRUE,IF(Data!T84="","",Data!T84),Data!AI84) -> 40.53817632 | T10: =IF(Data!$A$1=TRUE,IF(Data!U84="","",Data!U84),Data!AJ84) -> 39.79578829 | V10: 1.950562898 | W10: 1.298697222 | X10: 1.876476004 | Y10: 0.1788899573
B11: Retail/E-mobility/Other | D11: =Data!D85 -> 48 | E11: =Data!E85 -> 311 | L11: =IF(Data!$A$1=TRUE,Data!M85,Data!AB85) -> 10.425 | M11: =IF(Data!$A$1=TRUE,Data!N85,Data!AC85) -> 250.15 | N11: =IF(Data!$A$1=TRUE,Data!O85,Data!AD85) -> 19.421 | O11: =IF(Data!$A$1=TRUE,Data!P85,Data!AE85) -> 31.004 | Q11: =IF(Data!$A$1=TRUE,IF(Data!R85="","",Data!R85),Data!AG85) -> 18.155 | R11: =IF(Data!$A$1=TRUE,IF(Data!S85="","",Data!S85),Data!AH85) -> 24.911 | S11: =IF(Data!$A$1=TRUE,IF(Data!T85="","",Data!T85),Data!AI85) -> 20.56764947 | T11: =IF(Data!$A$1=TRUE,IF(Data!U85="","",Data!U85),Data!AJ85) -> 49.27794742 | V11: 0.7414868106 | W11: -0.9004157505 | X11: 0.05904173163 | Y11: 0.5894061224
B13: 1. Including acquisitions on a debt free, cash free basis. 2023 figures adjusted for State receivables from the Romanian State. 2. Renewables includes solar, wind, hydro. 3. Flexible generation includes, CCGT and conventional

Sheet Other Financial KPIs
B2: (in €m) | H2: =Data!$H$1 -> 2023 | M2: =Data!$M$1 -> 2024 | R2: =Data!$R$1 -> 2025 | S2: =Data!$R$1 -> 2025
B3: Adjusted EBITDA (per activity) | D3: 2022 | E3: 2023 | F3: 2024 | H3: =IF(Data!$A$1=TRUE,Data!H2,Data!W2) -> Q1 | I3: =IF(Data!$A$1=TRUE,Data!I2,Data!X2) -> Q2 | J3: =IF(Data!$A$1=TRUE,Data!J2,Data!Y2) -> Q3 | K3: =IF(Data!$A$1=TRUE,Data!K2,Data!Z2) -> Q4 | M3: Q1 | N3: H1 | O3: 9M | P3: FY | R3: Q1 | S3: H1 | T3: 9M | U3: FY
B5: Integrated | D5: =578 -> 578 | E5: 710 | F5: 1025.1 | J5: 529.9 | K5: 710 | M5: 252.365 | N5: 517.497 | O5: 727.3 | P5: 1025.1 | R5: 306.396 | S5: 659.221 | T5: 1083.574 | U5: 1263.867
B6: Distribution | D6: 376 | E6: 577.4 | F6: 787.6 | J6: 406.9 | K6: 577.4 | M6: 206.924 | N6: 409.204 | O6: 620.7 | P6: 787.6 | R6: 147.066 | S6: 336.819 | T6: 586.102 | U6: 782.178
B7: Total | D7: =SUM(D5:D6) -> 954 | E7: =SUM(E5:E6) -> 1287.4 | F7: =SUM(F5:F6) -> 1812.7 | J7: =SUM(J5:J6) -> 936.8 | K7: =SUM(K5:K6) -> 1287.4 | M7: =SUM(M5:M6) -> 459.289 | N7: 926.701 | O7: =SUM(O5:O6) -> 1348 | P7: =SUM(P5:P6) -> 1812.7 | R7: =SUM(R5:R6) -> 453.462 | S7: 996.04 | T7: =SUM(T5:T6) -> 1669.676 | U7: =SUM(U5:U6) -> 2046.045
B9: Adjusted EBITDA (per country) | D9: =D3 -> 2022 | E9: =E3 -> 2023 | F9: 2024 | H9: =IF(Data!$A$1=TRUE,Data!H2,Data!W2) -> Q1 | I9: =IF(Data!$A$1=TRUE,Data!I2,Data!X2) -> Q2 | J9: =IF(Data!$A$1=TRUE,Data!J2,Data!Y2) -> Q3 | K9: =K3 -> Q4 | M9: Q1 | N9: H1 | O9: 9M | P9: FY | R9: =R3 -> Q1 | S9: =S3 -> H1 | T9: =T3 -> 9M | U9: FY
B11: Greece | D11: 954 | E11: 1213.749 | F11: 1472.258 | J11: 936.8 | K11: 1213.749 | M11: 382.338 | N11: 730.044 | O11: 1055.8 | P11: 1472.258 | R11: 391.139 | S11: 803.18 | T11: 1334.721 | U11: 1600.427
B12: International | E12: 73.665 | F12: 340.497 | K12: 73.665 | M12: 76.95 | N12: 196.657 | O12: 292.2 | P12: 340.497 | R12: 62.323 | S12: 192.861 | T12: 334.955 | U12: 445.618
B13: Total | D13: =SUM(D11:D12) -> 954 | E13: =SUM(E11:E12) -> 1287.414 | F13: =SUM(F11:F12) -> 1812.755 | J13: =SUM(J11:J12) -> 936.8 | K13: =SUM(K11:K12) -> 1287.414 | M13: =SUM(M11:M12) -> 459.288 | N13: =SUM(N11:N12) -> 926.701 | O13: =SUM(O11:O12) -> 1348 | P13: =SUM(P11:P12) -> 1812.755 | R13: =SUM(R11:R12) -> 453.462 | S13: =SUM(S11:S12) -> 996.041 | T13: =SUM(T11:T12) -> 1669.676 | U13: =SUM(U11:U12) -> 2046.045
D15: 31.12.2022 | E15: 31.12.2023 | F15: 31.12.2024 | H15: 31.03.2023 | I15: 30.06.2023 | J15: 30.09.2023 | K15: 31.12.2023 | M15: 31.03.2024 | N15: 30.06.2024 | O15: 30.09.2024 | P15: 31.12.2024 | R15: 31.03.2025 | S15: 30.06.2025 | T15: 30.09.2025 | U15: 31.12.2025
B17: Net Debt | D17: 1388.1 | E17: 3167.8 | F17: 5090.7 | J17: 2187.7 | K17: 3167.8 | M17: 3376 | N17: 3826 | O17: 4604.4 | P17: 5090.7 | R17: 5194 | S17: 5963 | T17: 6680 | U17: 6480.869549
D19: =D3 -> 2022 | E19: =E3 -> 2023 | F19: =F3 -> 2024 | H19: =IF(Data!$A$1=TRUE,Data!H2,Data!W2) -> Q1 | I19: =IF(Data!$A$1=TRUE,Data!I2,Data!X2) -> Q2 | J19: =IF(Data!$A$1=TRUE,Data!J2,Data!Y2) -> Q3 | K19: =K3 -> Q4 | M19: Q1 | N19: H1 | O19: 9M | P19: FY | R19: =R3 -> Q1 | S19: =S3 -> H1 | T19: =T3 -> 9M | U19: FY
B21: Net Debt/EBITDA | D21: 1.5x | E21: 2 | F21: 2.8x | J21: 2.3x | K21: 2 | M21: 2 | N21: 2.3x | O21: 2.7 | P21: 2.8x | R21: 2.9x | S21: 3.2x | T21: 3.1x | U21: 3.2x
B23: Notes: FY2023 figures include the impact from the operations in Romania since October 25, 2023. 1. Based on PF LTM Adj. EBITDA

Sheet APMs FY 2024 & FY 2025
B3: TABLE A - EBITDA (Operating income before depreciation amortization and impairment net financial expenses and taxes) | G3: EBITDA (Operating income before depreciation and impairment net financial expenses and taxes) EBITDA serves to better analyze the Group’s operating results and is calculated as follows: Total turnover minus total operating expenses before depreciation amortization and impairment. Calculation of EBITDA is presented in Table A.
C4: GROUP
B5: Amounts in € m. | C5: 01.01-31.12.2025 | D5: 01.01-31.12.2024
B7: Total Turnover (1) | C7: 9701 | D7: 8979
B8: Less:
B9: Operating expenses before depreciation and impairment (2) | C9: 7669 | D9: 7261
B10: Payroll cost | C10: 1123 | D10: 939
B11: Merchandise | C11: 633 | D11: 428
B12: Lignite | C12: 2 | D12: 22
B13: Liquid fuels | C13: 697 | D13: 725
B14: Natural gas | C14: 841 | D14: 883
B15: Energy purchases | C15: 1886 | D15: 1722
B16: Materials and consumables | C16: 149 | D16: 147
B17: Transmission system usage | C17: 189 | D17: 180
B18: Distribution system usage | C18: 199 | D18: 198
B19: Utilities and maintenance | C19: 395 | D19: 319
B20: Third party fees | C20: 608 | D20: 548
B21: Emission allowances | C21: 706 | D21: 833
B22: Provisions/(reversal of provisions) for risks | C22: -13 | D22: -32
B23: Provisions/(reversal of provisions) for impairment of inventories | C23: 26 | D23: -2
B24: Provisions for expected credit losses | C24: 63 | D24: 47
B25: Impairment loss on Subsidiaries | C25: - | D25: -
B26: Other income | C26: -245 | D26: -106
B27: Οther expenses | C27: 410 | D27: 410
B28: EBITDA (Α) = [(1) - (2)] | C28: 2031 | D28: 1718
B31: TABLE B - Operating expenditure before depreciation and impairment without special items | G31: Operating expenditure before depreciation and impairment without special items This measure is calculated by subtracting the special items mentioned in the Adjusted EBITDA note below from the figure calculated for operating expenses before depreciation and impairment in the EBITDA measure. It is presented in Table B.
C32: GROUP
B33: Amounts in € m. | C33: 01.01-31.12.2025 | D33: 01.01-31.12.2024
B35: Operating expenses before depreciation and impairment (2) | C35: 7670 | D35: 7261
B36: less special items:
B37: Provision for employee severance incentive due to service termination | C37: 113 | D37: 9
B38: (Gain)/ Loss from valuation of power purchase agreements | C38: -98 | D38: 86
B39: Operating expenses before depreciation and impairment without special items | C39: 7655 | D39: 7166
B42: TABLE C - Adj. EBITDA (Operating income before depreciation and impairment net financial expenses and taxes) | G42: Adjusted EBITDA (Operating income before depreciation and impairment net financial expenses and taxes) Adjusted EBITDA serves to better analyze the Group's operating results excluding the impact of special items. For the year 2024, the special items that affected the Adjusted EBITDA are the following: a) a provision for employee severance incentive due to service termination amounting to € 9m (negative impact) b) the valuation of power purchase agreements amounting to € 86m (negative impact). For the year 2025, the special items that affected the Adjusted EBITDA are the following: a) a provision for employee severance incentive due to service termination amounting to € 113m (negative impact) b) the valuation of power purchase agreements amounting to €98m (positive impact). Adjusted EBITDA is presented in Table C.
C43: GROUP
B44: Amounts in € m. | C44: 01.01-30.09.2025 | D44: 01.01-30.09.2024
B46: EBITDA (1) | C46: 2031 | D46: 1718
B47: Plus Special items (2): | C47: 15 | D47: 95
B48: Provision for employee severance incentive due to service termination | C48: 113 | D48: 9
B49: (Gain)/ Loss from valuation of power purchase agreements | C49: -98 | D49: 86
B50: Adjusted EBITDA (3) = [(1)+(2)] | C50: 2046 | D50: 1813
B53: TABLE D - Adj. Net Income/(Loss) | G53: Adjusted net income/(loss) This Index serves to better analyze the results of the Group, excluding the effect of special items and the calculated tax on them. Furthermore, Impairment loss on assets and the Depreciation from revaluation of fixed assets and the calculated tax on them have been excluded for the years ended 31.12.2024 and 31.12.2025. In addition, for the year ended 31.12.2025, the foreign exchange losses on loans and borrowings, gain from remeasurement of investment in associates, the bargain gain from subsidiaries acquisition, the loss from sale of subsidiary and the tax on all of them have been excluded. The calculations are presented in Table D.
C54: GROUP
B55: Amounts in € m. | C55: 01.01-31.12.2025 | D55: 01.01-31.12.2024
B57: NET INCOME AFTER TAX (A) | C57: 359 | D57: 187
B58: plus special items (1):
B59: (Gain)/ Loss from valuation of power purchase agreements | C59: -98 | D59: 86
B60: Provision for employee severance incentive due to service termination | C60: 113 | D60: 9
B61: plus other figures (2):
B62: Impairment loss on assets | C62: 14 | D62: 207
B63: Loss from sale of subsidiary | C63: 0.037 | D63: -
B64: Depreciation from revaluation of fixed assets | C64: 120 | D64: -
B65: Foreign exchange losses on loans and borrowings | C65: 13 | D65: -
B66: Bargain gain from subsidiaries acquisition | C66: -5 | D66: -
B67: Gain from remeasurement of investment in associates | C67: -7 | D67: -
B68: minus:
B69: Adjustments to tax for special items/Impairment loss on assets/ Depreciation from revaluation of fixed assets/Foreign exchange (gains)/ losses on loans and borrowings/Gain from remeasurement of investment in associates/Bargain gain from subsidiaries acquisition (3) | C69: 7 | D69: 63
B70: Adjusted Net Income [(Α)+(1)+(2)-(3)] | C70: 502.037 | D70: 426
B73: Table E - Adj. net income/(loss) after minorities | G73: Adjusted net income/(loss) after minorities Adjusted net income/(loss) after minorities serves to better analyze the results of the Group, excluding the effect of minorities, and minorities on special items. The special items that affected Adjusted net income/(loss) after minorities for the Group for the year ended December 31, 2025 were a) gain from valuation of power purchase agreements and b) provision for employee severance incentive due to service termination, while for the year ended December 31, 2024 this index was affected only by loss from valuation of power purchase agreements. The calculations are presented in Table E.
C74: GROUP
B75: Amounts in € m. | C75: 01.01-31.12.2025 | D75: 01.01-31.12.2024
B77: Adjusted net income (Β) | C77: 502.037 | D77: 426
B78: minus:
B79: Minorities (1) | C79: 64.40236069 | D79: 35.38216911
B80: plus Adjustments to minorities for special items (2):
B81: Gain from valuation of power purchase agreements | C81: 15.44779036 | D81: -26.17790961
B82: Provision for employee severance incentive due to service termination | C82: -4.712526 | D82: -
B83: Adjusted net income after minorities [(Β)-(1)+(2)] | C83: 448.3699037 | D83: 365
B86: Table F - Adj. Earnings per share | G86: Adj. Earnings (Loss) Per Share The adjusted earnings per share (Adjusted EPS) ratio reflects the Group's actual operating profitability per share, excluding extraordinary or non-recurring events, and is calculated as the quotient of adjusted net income divided by the weighted average number of shares. The calculation is presented in Table F.
C87: GROUP
B88: Amounts in € m. | C88: 01.01-31.12.2025 | D88: 01.01-31.12.2024
B90: Adjusted Net Income after Minorities (1) (Amounts in € m.) | C90: 448.3699037 | D90: 364.4399213
B91: Over: | C91: 0 | D91: 0
B92: Weighted average number of shares (2) (Amounts in m.) | C92: 348.56065 | D92: 360.2107999
B93: Adjusted Earnings per share [(3)=(1)/(2)] (Amounts in €) | C93: 1.286346877 | D93: 1.011740685
B96: TABLE G – NET DEBT | G96: Net debt Net debt is an APM that Management uses to evaluate the Group’s capital structure as well as leverage. Net debt is calculated by adding long-term loans the current portion of long-term loans and short-term loans and subtracting the total cash and cash equivalents restricted cash related to loan agreements and financial assets measured at fair value through other comprehensive income and adding the unamortized portion of loans issuance fees and loan amendments IFRS 9. Calculation of Net debt is presented in Table G.
C97: GROUP
B98: Amounts in € m. | C98: 30.09.2025 | D98: 31.12.2024
B99: Long-term borrowing | C99: 7743.365 | D99: 6233.741
B100: Current portion of long-term borrowing | C100: 553.443 | D100: 699
B101: Short-term borrowing | C101: 190.36 | D101: 224
B102: Restricted cash | C102: -2076.865 | D102: -1999
B103: Cash and cash equivalents | C103: -160.3318535 | D103: -163
B104: Financial assets measured at fair value through other comprehensive income | C104: -0.364 | D104: -0.315
B105: Unamortized portion of loans issuance fees and loan amendments IFRS 9 | C105: 231.2349213 | D105: 96.088
B106: TOTAL | C106: 6481 | D106: 5090.514

Sheet Disclaimer

Sheet IR Contact
